Workbook

Sheet Weightings
A2: THE WHOLE SCHOOL QUESTIONNAIRE | U2: Job size calculations | Y2: No depute
U3: HTs | V3: Deputes | W3: SMT members | X3: Others | Y3: SMT members | Z3: No of SMT members | AA3: Additional SMT weighting | AB3: Checks
B6: 1. WHOLE-SCHOOL INFORMATION | AB6: =SUM(AB7:AB1633) -> 0 | AC6: =SUM(AC7:AC1633) -> 13.02
B8: 1.1 Local Authority
B10: 1.2 Name of Job sizing coordinator
B12: 1.3 Name of school(s)
C14: Is the post holder responsible for more than one school ?
C16: Enter the number of schools | U16: 0.1 | V16: 0.1 | W16: =+Y16+AA16 -> 0.1 | X16: 0.1 | Y16: 0.1 | Z16: =IF(ISBLANK('Post-holder data'!$DE$5),0,'Post-holder data'!$DE$5) -> 0 | AA16: =IF(Z16>0,+((V16-Y16)/'Post-holder data'!$DE$5),0) -> 0 | AB16: =+W16-Y16 -> 0 | AC16: =+V16-W16 -> 0
AB17: =+W17-Y17 -> 0 | AC17: =+V17-W17 -> 0
B18: 1.4 Type of establishment | AB18: 0 | AC18: 0
AB19: 0 | AC19: 0
AB20: 0 | AC20: 0
C21: Primary | U21: 1 | V21: 1 | W21: =+Y21+AA21 -> 1 | X21: 1 | Y21: 1 | Z21: =IF(ISBLANK('Post-holder data'!$DE$5),0,'Post-holder data'!$DE$5) -> 0 | AA21: =IF(Z21>0,+((V21-Y21)/'Post-holder data'!$DE$5),0) -> 0 | AB21: 0 | AC21: 0
Z22: =IF(ISBLANK('Post-holder data'!$DE$5),0,'Post-holder data'!$DE$5) -> 0 | AA22: =IF(Z22>0,+((V22-Y22)/'Post-holder data'!$DE$5),0) -> 0 | AB22: 0 | AC22: 0
C23: Secondary | U23: 1 | V23: 1 | W23: =+Y23+AA23 -> 1 | X23: 1 | Y23: 1 | Z23: =IF(ISBLANK('Post-holder data'!$DE$5),0,'Post-holder data'!$DE$5) -> 0 | AA23: =IF(Z23>0,+((V23-Y23)/'Post-holder data'!$DE$5),0) -> 0 | AB23: 0 | AC23: 0
Z24: =IF(ISBLANK('Post-holder data'!$DE$5),0,'Post-holder data'!$DE$5) -> 0 | AA24: =IF(Z24>0,+((V24-Y24)/'Post-holder data'!$DE$5),0) -> 0 | AB24: 0 | AC24: 0
C25: Special | U25: 1 | V25: 1 | W25: =+Y25+AA25 -> 1 | X25: 1 | Y25: 1 | Z25: =IF(ISBLANK('Post-holder data'!$DE$5),0,'Post-holder data'!$DE$5) -> 0 | AA25: =IF(Z25>0,+((V25-Y25)/'Post-holder data'!$DE$5),0) -> 0 | AB25: 0 | AC25: 0
Z26: =IF(ISBLANK('Post-holder data'!$DE$5),0,'Post-holder data'!$DE$5) -> 0 | AA26: =IF(Z26>0,+((V26-Y26)/'Post-holder data'!$DE$5),0) -> 0 | AB26: 0 | AC26: 0
C27: Junior High School | U27: 1 | V27: 1 | W27: =+Y27+AA27 -> 1 | X27: 1 | Y27: 1 | Z27: =IF(ISBLANK('Post-holder data'!$DE$5),0,'Post-holder data'!$DE$5) -> 0 | AA27: =IF(Z27>0,+((V27-Y27)/'Post-holder data'!$DE$5),0) -> 0 | AB27: 0 | AC27: 0
Z28: =IF(ISBLANK('Post-holder data'!$DE$5),0,'Post-holder data'!$DE$5) -> 0 | AA28: =IF(Z28>0,+((V28-Y28)/'Post-holder data'!$DE$5),0) -> 0 | AB28: 0 | AC28: 0
C29: Other (please give details) | U29: 1 | V29: 1 | W29: =+Y29+AA29 -> 1 | X29: 1 | Y29: 1 | Z29: =IF(ISBLANK('Post-holder data'!$DE$5),0,'Post-holder data'!$DE$5) -> 0 | AA29: =IF(Z29>0,+((V29-Y29)/'Post-holder data'!$DE$5),0) -> 0 | AB29: 0 | AC29: 0
Z30: =IF(ISBLANK('Post-holder data'!$DE$5),0,'Post-holder data'!$DE$5) -> 0 | AA30: =IF(Z30>0,+((V30-Y30)/'Post-holder data'!$DE$5),0) -> 0 | AB30: 0 | AC30: 0
Z31: =IF(ISBLANK('Post-holder data'!$DE$5),0,'Post-holder data'!$DE$5) -> 0 | AA31: =IF(Z31>0,+((V31-Y31)/'Post-holder data'!$DE$5),0) -> 0 | AB31: 0 | AC31: 0
Z32: =IF(ISBLANK('Post-holder data'!$DE$5),0,'Post-holder data'!$DE$5) -> 0 | AA32: =IF(Z32>0,+((V32-Y32)/'Post-holder data'!$DE$5),0) -> 0 | AB32: 0 | AC32: 0
Z33: =IF(ISBLANK('Post-holder data'!$DE$5),0,'Post-holder data'!$DE$5) -> 0 | AA33: =IF(Z33>0,+((V33-Y33)/'Post-holder data'!$DE$5),0) -> 0 | AB33: 0 | AC33: 0
Z34: =IF(ISBLANK('Post-holder data'!$DE$5),0,'Post-holder data'!$DE$5) -> 0 | AA34: =IF(Z34>0,+((V34-Y34)/'Post-holder data'!$DE$5),0) -> 0 | AB34: 0 | AC34: 0
Z35: =IF(ISBLANK('Post-holder data'!$DE$5),0,'Post-holder data'!$DE$5) -> 0 | AA35: =IF(Z35>0,+((V35-Y35)/'Post-holder data'!$DE$5),0) -> 0 | AB35: 0 | AC35: 0
Z36: =IF(ISBLANK('Post-holder data'!$DE$5),0,'Post-holder data'!$DE$5) -> 0 | AA36: =IF(Z36>0,+((V36-Y36)/'Post-holder data'!$DE$5),0) -> 0 | AB36: 0 | AC36: 0
C37: Tick if the school includes | Z37: =IF(ISBLANK('Post-holder data'!$DE$5),0,'Post-holder data'!$DE$5) -> 0 | AA37: =IF(Z37>0,+((V37-Y37)/'Post-holder data'!$DE$5),0) -> 0 | AB37: 0 | AC37: 0
Z38: =IF(ISBLANK('Post-holder data'!$DE$5),0,'Post-holder data'!$DE$5) -> 0 | AA38: =IF(Z38>0,+((V38-Y38)/'Post-holder data'!$DE$5),0) -> 0 | AB38: 0 | AC38: 0
D39: Nursery unit | U39: 1.1 | V39: 1 | W39: =+Y39+AA39 -> 1 | X39: 1 | Y39: 1 | Z39: =IF(ISBLANK('Post-holder data'!$DE$5),0,'Post-holder data'!$DE$5) -> 0 | AA39: =IF(Z39>0,+((V39-Y39)/'Post-holder data'!$DE$5),0) -> 0 | AB39: 0 | AC39: 0
Z40: =IF(ISBLANK('Post-holder data'!$DE$5),0,'Post-holder data'!$DE$5) -> 0 | AA40: =IF(Z40>0,+((V40-Y40)/'Post-holder data'!$DE$5),0) -> 0 | AB40: 0 | AC40: 0
D41: Special needs unit | U41: 1.1 | V41: 1 | W41: =+Y41+AA41 -> 1 | X41: 1 | Y41: 1 | Z41: =IF(ISBLANK('Post-holder data'!$DE$5),0,'Post-holder data'!$DE$5) -> 0 | AA41: =IF(Z41>0,+((V41-Y41)/'Post-holder data'!$DE$5),0) -> 0 | AB41: 0 | AC41: 0
Z42: =IF(ISBLANK('Post-holder data'!$DE$5),0,'Post-holder data'!$DE$5) -> 0 | AA42: =IF(Z42>0,+((V42-Y42)/'Post-holder data'!$DE$5),0) -> 0 | AB42: 0 | AC42: 0
Z43: =IF(ISBLANK('Post-holder data'!$DE$5),0,'Post-holder data'!$DE$5) -> 0 | AA43: =IF(Z43>0,+((V43-Y43)/'Post-holder data'!$DE$5),0) -> 0 | AB43: 0 | AC43: 0
U44: HTs | V44: Deputes | W44: SMT members | X44: Others | Y44: SMT members | Z44: =IF(ISBLANK('Post-holder data'!$DE$5),0,'Post-holder data'!$DE$5) -> 0
B45: 1.5 School Roll | V45: 0.55 | W45: =+Y45+AA45 -> 0.45 | X45: 0.3 | Y45: 0.45 | Z45: =IF(ISBLANK('Post-holder data'!$DE$5),0,'Post-holder data'!$DE$5) -> 0 | AA45: =IF(Z45>0,+((V45-Y45)/'Post-holder data'!$DE$5),0) -> 0 | AB45: 0 | AC45: 0.1
Z46: =IF(ISBLANK('Post-holder data'!$DE$5),0,'Post-holder data'!$DE$5) -> 0 | AA46: =IF(Z46>0,+((V46-Y46)/'Post-holder data'!$DE$5),0) -> 0 | AB46: 0 | AC46: 0
C47: Up to 50 | T47: =(20-U47)/8 -> 1.5 | U47: 8 | V47: 4.4 | W47: =+Y47+AA47 -> 3.6 | X47: 2.4 | Y47: 3.6 | Z47: =IF(ISBLANK('Post-holder data'!$DE$5),0,'Post-holder data'!$DE$5) -> 0 | AA47: =IF(Z47>0,+((V47-Y47)/'Post-holder data'!$DE$5),0) -> 0 | AB47: 0 | AC47: 0.8
Z48: =IF(ISBLANK('Post-holder data'!$DE$5),0,'Post-holder data'!$DE$5) -> 0 | AA48: =IF(Z48>0,+((V48-Y48)/'Post-holder data'!$DE$5),0) -> 0 | AB48: 0 | AC48: 0
C49: 51 to 100 | U49: 9.5 | V49: 5.225 | W49: =+Y49+AA49 -> 4.275 | X49: 2.85 | Y49: 4.275 | Z49: =IF(ISBLANK('Post-holder data'!$DE$5),0,'Post-holder data'!$DE$5) -> 0 | AA49: =IF(Z49>0,+((V49-Y49)/'Post-holder data'!$DE$5),0) -> 0 | AB49: 0 | AC49: 0.95
Z50: =IF(ISBLANK('Post-holder data'!$DE$5),0,'Post-holder data'!$DE$5) -> 0 | AA50: =IF(Z50>0,+((V50-Y50)/'Post-holder data'!$DE$5),0) -> 0 | AB50: 0 | AC50: 0
C51: 101 to 250 | U51: 11 | V51: 6.05 | W51: =+Y51+AA51 -> 4.95 | X51: 3.3 | Y51: 4.95 | Z51: =IF(ISBLANK('Post-holder data'!$DE$5),0,'Post-holder data'!$DE$5) -> 0 | AA51: =IF(Z51>0,+((V51-Y51)/'Post-holder data'!$DE$5),0) -> 0 | AB51: 0 | AC51: 1.1
Z52: =IF(ISBLANK('Post-holder data'!$DE$5),0,'Post-holder data'!$DE$5) -> 0 | AA52: =IF(Z52>0,+((V52-Y52)/'Post-holder data'!$DE$5),0) -> 0 | AB52: 0 | AC52: 0
C53: 251 to 500 | U53: 12.5 | V53: 6.875 | W53: =+Y53+AA53 -> 5.625 | X53: 3.75 | Y53: 5.625 | Z53: =IF(ISBLANK('Post-holder data'!$DE$5),0,'Post-holder data'!$DE$5) -> 0 | AA53: =IF(Z53>0,+((V53-Y53)/'Post-holder data'!$DE$5),0) -> 0 | AB53: 0 | AC53: 1.25
Z54: =IF(ISBLANK('Post-holder data'!$DE$5),0,'Post-holder data'!$DE$5) -> 0 | AA54: =IF(Z54>0,+((V54-Y54)/'Post-holder data'!$DE$5),0) -> 0 | AB54: 0 | AC54: 0
C55: 501 to 750 | U55: 14 | V55: 7.7 | W55: =+Y55+AA55 -> 6.3 | X55: 4.2 | Y55: 6.3 | Z55: =IF(ISBLANK('Post-holder data'!$DE$5),0,'Post-holder data'!$DE$5) -> 0 | AA55: =IF(Z55>0,+((V55-Y55)/'Post-holder data'!$DE$5),0) -> 0 | AB55: 0 | AC55: 1.4
Z56: =IF(ISBLANK('Post-holder data'!$DE$5),0,'Post-holder data'!$DE$5) -> 0 | AA56: =IF(Z56>0,+((V56-Y56)/'Post-holder data'!$DE$5),0) -> 0 | AB56: 0 | AC56: 0
C57: 751 to 1,000 | U57: 15.5 | V57: 8.525 | W57: =+Y57+AA57 -> 6.975 | X57: 4.65 | Y57: 6.975 | Z57: =IF(ISBLANK('Post-holder data'!$DE$5),0,'Post-holder data'!$DE$5) -> 0 | AA57: =IF(Z57>0,+((V57-Y57)/'Post-holder data'!$DE$5),0) -> 0 | AB57: 0 | AC57: 1.55
Z58: =IF(ISBLANK('Post-holder data'!$DE$5),0,'Post-holder data'!$DE$5) -> 0 | AA58: =IF(Z58>0,+((V58-Y58)/'Post-holder data'!$DE$5),0) -> 0 | AB58: 0 | AC58: 0
C59: 1,001 to 1,250 | U59: 17 | V59: 9.35 | W59: =+Y59+AA59 -> 7.65 | X59: 5.1 | Y59: 7.65 | Z59: =IF(ISBLANK('Post-holder data'!$DE$5),0,'Post-holder data'!$DE$5) -> 0 | AA59: =IF(Z59>0,+((V59-Y59)/'Post-holder data'!$DE$5),0) -> 0 | AB59: 0 | AC59: 1.7
Z60: =IF(ISBLANK('Post-holder data'!$DE$5),0,'Post-holder data'!$DE$5) -> 0 | AA60: =IF(Z60>0,+((V60-Y60)/'Post-holder data'!$DE$5),0) -> 0 | AB60: 0 | AC60: 0
C61: Over 1,250 to 1,500 | U61: 18.5 | V61: 10.175 | W61: =+Y61+AA61 -> 8.325 | X61: 5.55 | Y61: 8.325 | Z61: =IF(ISBLANK('Post-holder data'!$DE$5),0,'Post-holder data'!$DE$5) -> 0 | AA61: =IF(Z61>0,+((V61-Y61)/'Post-holder data'!$DE$5),0) -> 0 | AB61: 0 | AC61: 1.85
Z62: =IF(ISBLANK('Post-holder data'!$DE$5),0,'Post-holder data'!$DE$5) -> 0 | AA62: =IF(Z62>0,+((V62-Y62)/'Post-holder data'!$DE$5),0) -> 0 | AB62: 0 | AC62: 0
C63: Over 1,500 | U63: 20 | V63: 11 | W63: =+Y63+AA63 -> 9 | X63: 6 | Y63: 9 | Z63: =IF(ISBLANK('Post-holder data'!$DE$5),0,'Post-holder data'!$DE$5) -> 0 | AA63: =IF(Z63>0,+((V63-Y63)/'Post-holder data'!$DE$5),0) -> 0 | AB63: 0 | AC63: 2
Z64: =IF(ISBLANK('Post-holder data'!$DE$5),0,'Post-holder data'!$DE$5) -> 0 | AA64: =IF(Z64>0,+((V64-Y64)/'Post-holder data'!$DE$5),0) -> 0 | AB64: 0 | AC64: 0
U65: 0.6666666667 | V65: 0.31 | W65: =+Y65+AA65 -> 0.21 | X65: 0 | Y65: 0.21 | Z65: =IF(ISBLANK('Post-holder data'!$DE$5),0,'Post-holder data'!$DE$5) -> 0 | AA65: =IF(Z65>0,+((V65-Y65)/'Post-holder data'!$DE$5),0) -> 0 | AB65: 0 | AC65: 0.1
B66: 1.6 Numbers of staff | U66: HTs | V66: Deputes | W66: SMT members | Y66: SMT members | Z66: =IF(ISBLANK('Post-holder data'!$DE$5),0,'Post-holder data'!$DE$5) -> 0
C67: Promoted posts | U67: 1.6 | V67: 0.496 | W67: =+Y67+AA67 -> 0.336 | X67: 0 | Y67: 0.336 | Z67: =IF(ISBLANK('Post-holder data'!$DE$5),0,'Post-holder data'!$DE$5) -> 0 | AA67: =IF(Z67>0,+((V67-Y67)/'Post-holder data'!$DE$5),0) -> 0 | AB67: 0 | AC67: 0.16
Z68: =IF(ISBLANK('Post-holder data'!$DE$5),0,'Post-holder data'!$DE$5) -> 0 | AA68: =IF(Z68>0,+((V68-Y68)/'Post-holder data'!$DE$5),0) -> 0 | AB68: 0 | AC68: 0
C69: Other teaching staff | U69: 1.6 | V69: 0.496 | W69: =+Y69+AA69 -> 0.336 | X69: 0 | Y69: 0.336 | Z69: =IF(ISBLANK('Post-holder data'!$DE$5),0,'Post-holder data'!$DE$5) -> 0 | AA69: =IF(Z69>0,+((V69-Y69)/'Post-holder data'!$DE$5),0) -> 0 | AB69: 0 | AC69: 0.16
Z70: =IF(ISBLANK('Post-holder data'!$DE$5),0,'Post-holder data'!$DE$5) -> 0 | AA70: =IF(Z70>0,+((V70-Y70)/'Post-holder data'!$DE$5),0) -> 0 | AB70: 0 | AC70: 0
C71: Other staff | U71: 1 | V71: 0.31 | W71: =+Y71+AA71 -> 0.21 | X71: 0 | Y71: 0.21 | Z71: =IF(ISBLANK('Post-holder data'!$DE$5),0,'Post-holder data'!$DE$5) -> 0 | AA71: =IF(Z71>0,+((V71-Y71)/'Post-holder data'!$DE$5),0) -> 0 | AB71: 0 | AC71: 0.1
Z72: =IF(ISBLANK('Post-holder data'!$DE$5),0,'Post-holder data'!$DE$5) -> 0 | AA72: =IF(Z72>0,+((V72-Y72)/'Post-holder data'!$DE$5),0) -> 0 | AB72: 0 | AC72: 0
B73: 1.7 Current post | Z73: =IF(ISBLANK('Post-holder data'!$DE$5),0,'Post-holder data'!$DE$5) -> 0 | AA73: =IF(Z73>0,+((V73-Y73)/'Post-holder data'!$DE$5),0) -> 0 | AB73: 0 | AC73: 0
Z74: =IF(ISBLANK('Post-holder data'!$DE$5),0,'Post-holder data'!$DE$5) -> 0 | AA74: =IF(Z74>0,+((V74-Y74)/'Post-holder data'!$DE$5),0) -> 0 | AB74: 0 | AC74: 0
C75: Head Teacher | Z75: =IF(ISBLANK('Post-holder data'!$DE$5),0,'Post-holder data'!$DE$5) -> 0 | AA75: =IF(Z75>0,+((V75-Y75)/'Post-holder data'!$DE$5),0) -> 0 | AB75: 0 | AC75: 0
Z76: =IF(ISBLANK('Post-holder data'!$DE$5),0,'Post-holder data'!$DE$5) -> 0 | AA76: =IF(Z76>0,+((V76-Y76)/'Post-holder data'!$DE$5),0) -> 0 | AB76: 0 | AC76: 0
C77: Depute/assistant Headteacher | Z77: =IF(ISBLANK('Post-holder data'!$DE$5),0,'Post-holder data'!$DE$5) -> 0 | AA77: =IF(Z77>0,+((V77-Y77)/'Post-holder data'!$DE$5),0) -> 0 | AB77: 0 | AC77: 0
Z78: =IF(ISBLANK('Post-holder data'!$DE$5),0,'Post-holder data'!$DE$5) -> 0 | AA78: =IF(Z78>0,+((V78-Y78)/'Post-holder data'!$DE$5),0) -> 0 | AB78: 0 | AC78: 0
C79: Principal Teacher | Z79: =IF(ISBLANK('Post-holder data'!$DE$5),0,'Post-holder data'!$DE$5) -> 0 | AA79: =IF(Z79>0,+((V79-Y79)/'Post-holder data'!$DE$5),0) -> 0 | AB79: 0 | AC79: 0
Z80: =IF(ISBLANK('Post-holder data'!$DE$5),0,'Post-holder data'!$DE$5) -> 0 | AA80: =IF(Z80>0,+((V80-Y80)/'Post-holder data'!$DE$5),0) -> 0 | AB80: 0 | AC80: 0
Z81: =IF(ISBLANK('Post-holder data'!$DE$5),0,'Post-holder data'!$DE$5) -> 0 | AA81: =IF(Z81>0,+((V81-Y81)/'Post-holder data'!$DE$5),0) -> 0 | AB81: =+W81-Y81 -> 0 | AC81: =+V81-W81 -> 0
C82: Being a permanent member of the senior management team (SMT) | Z82: =IF(ISBLANK('Post-holder data'!$DE$5),0,'Post-holder data'!$DE$5) -> 0 | AA82: =IF(Z82>0,+((V82-Y82)/'Post-holder data'!$DE$5),0) -> 0 | AB82: 0 | AC82: 0
Z83: =IF(ISBLANK('Post-holder data'!$DE$5),0,'Post-holder data'!$DE$5) -> 0 | AA83: =IF(Z83>0,+((V83-Y83)/'Post-holder data'!$DE$5),0) -> 0 | AB83: 0 | AC83: 0
C84: Being the SMT member who formally deputises for the Headteacher | Z84: =IF(ISBLANK('Post-holder data'!$DE$5),0,'Post-holder data'!$DE$5) -> 0 | AA84: =IF(Z84>0,+((V84-Y84)/'Post-holder data'!$DE$5),0) -> 0 | AB84: 0 | AC84: 0
Z85: =IF(ISBLANK('Post-holder data'!$DE$5),0,'Post-holder data'!$DE$5) -> 0 | AA85: =IF(Z85>0,+((V85-Y85)/'Post-holder data'!$DE$5),0) -> 0 | AB85: 0 | AC85: 0
B86: 1.8 Percentage of children registered for free school meals | Z86: =IF(ISBLANK('Post-holder data'!$DE$5),0,'Post-holder data'!$DE$5) -> 0 | AA86: =IF(Z86>0,+((V86-Y86)/'Post-holder data'!$DE$5),0) -> 0 | AB86: 0 | AC86: 0
Z87: =IF(ISBLANK('Post-holder data'!$DE$5),0,'Post-holder data'!$DE$5) -> 0 | AA87: =IF(Z87>0,+((V87-Y87)/'Post-holder data'!$DE$5),0) -> 0 | AB87: 0 | AC87: 0
Z88: =IF(ISBLANK('Post-holder data'!$DE$5),0,'Post-holder data'!$DE$5) -> 0 | AA88: =IF(Z88>0,+((V88-Y88)/'Post-holder data'!$DE$5),0) -> 0 | AB88: 0 | AC88: 0
C89: 0 to 10% | U89: 0.75 | V89: 0.75 | W89: =+Y89+AA89 -> 0.75 | X89: 0.75 | Y89: 0.75 | Z89: =IF(ISBLANK('Post-holder data'!$DE$5),0,'Post-holder data'!$DE$5) -> 0 | AA89: =IF(Z89>0,+((V89-Y89)/'Post-holder data'!$DE$5),0) -> 0 | AB89: 0 | AC89: 0
Z90: =IF(ISBLANK('Post-holder data'!$DE$5),0,'Post-holder data'!$DE$5) -> 0 | AA90: =IF(Z90>0,+((V90-Y90)/'Post-holder data'!$DE$5),0) -> 0 | AB90: 0 | AC90: 0
C91: 11% to 25% | U91: 1 | V91: 1 | W91: =+Y91+AA91 -> 1 | X91: 1 | Y91: 1 | Z91: =IF(ISBLANK('Post-holder data'!$DE$5),0,'Post-holder data'!$DE$5) -> 0 | AA91: =IF(Z91>0,+((V91-Y91)/'Post-holder data'!$DE$5),0) -> 0 | AB91: 0 | AC91: 0
Z92: =IF(ISBLANK('Post-holder data'!$DE$5),0,'Post-holder data'!$DE$5) -> 0 | AA92: =IF(Z92>0,+((V92-Y92)/'Post-holder data'!$DE$5),0) -> 0 | AB92: 0 | AC92: 0
C93: 26% to 50% | U93: 1.25 | V93: 1.25 | W93: =+Y93+AA93 -> 1.25 | X93: 1.25 | Y93: 1.25 | Z93: =IF(ISBLANK('Post-holder data'!$DE$5),0,'Post-holder data'!$DE$5) -> 0 | AA93: =IF(Z93>0,+((V93-Y93)/'Post-holder data'!$DE$5),0) -> 0 | AB93: 0 | AC93: 0
Z94: =IF(ISBLANK('Post-holder data'!$DE$5),0,'Post-holder data'!$DE$5) -> 0 | AA94: =IF(Z94>0,+((V94-Y94)/'Post-holder data'!$DE$5),0) -> 0 | AB94: 0 | AC94: 0
C95: 51% to 75% | U95: 1.5 | V95: 1.5 | W95: =+Y95+AA95 -> 1.5 | X95: 1.5 | Y95: 1.5 | Z95: =IF(ISBLANK('Post-holder data'!$DE$5),0,'Post-holder data'!$DE$5) -> 0 | AA95: =IF(Z95>0,+((V95-Y95)/'Post-holder data'!$DE$5),0) -> 0 | AB95: 0 | AC95: 0
Z96: =IF(ISBLANK('Post-holder data'!$DE$5),0,'Post-holder data'!$DE$5) -> 0 | AA96: =IF(Z96>0,+((V96-Y96)/'Post-holder data'!$DE$5),0) -> 0 | AB96: 0 | AC96: 0
C97: 75% to 100% | U97: 1.75 | V97: 1.75 | W97: =+Y97+AA97 -> 1.75 | X97: 1.75 | Y97: 1.75 | Z97: =IF(ISBLANK('Post-holder data'!$DE$5),0,'Post-holder data'!$DE$5) -> 0 | AA97: =IF(Z97>0,+((V97-Y97)/'Post-holder data'!$DE$5),0) -> 0 | AB97: 0 | AC97: 0
Z98: =IF(ISBLANK('Post-holder data'!$DE$5),0,'Post-holder data'!$DE$5) -> 0 | AA98: =IF(Z98>0,+((V98-Y98)/'Post-holder data'!$DE$5),0) -> 0 | AB98: 0 | AC98: 0
Z99: =IF(ISBLANK('Post-holder data'!$DE$5),0,'Post-holder data'!$DE$5) -> 0 | AA99: =IF(Z99>0,+((V99-Y99)/'Post-holder data'!$DE$5),0) -> 0 | AB99: 0 | AC99: 0
B100: 1.9 Size of school budget | Z100: =IF(ISBLANK('Post-holder data'!$DE$5),0,'Post-holder data'!$DE$5) -> 0 | AA100: =IF(Z100>0,+((V100-Y100)/'Post-holder data'!$DE$5),0) -> 0 | AB100: 0 | AC100: 0
Z101: =IF(ISBLANK('Post-holder data'!$DE$5),0,'Post-holder data'!$DE$5) -> 0 | AA101: =IF(Z101>0,+((V101-Y101)/'Post-holder data'!$DE$5),0) -> 0 | AB101: 0 | AC101: 0
Z102: =IF(ISBLANK('Post-holder data'!$DE$5),0,'Post-holder data'!$DE$5) -> 0 | AA102: =IF(Z102>0,+((V102-Y102)/'Post-holder data'!$DE$5),0) -> 0 | AB102: 0 | AC102: 0
C103: Total budget | D103: £ | F103: '000 | Z103: =IF(ISBLANK('Post-holder data'!$DE$5),0,'Post-holder data'!$DE$5) -> 0 | AA103: =IF(Z103>0,+((V103-Y103)/'Post-holder data'!$DE$5),0) -> 0 | AB103: 0 | AC103: 0
Z104: =IF(ISBLANK('Post-holder data'!$DE$5),0,'Post-holder data'!$DE$5) -> 0 | AA104: =IF(Z104>0,+((V104-Y104)/'Post-holder data'!$DE$5),0) -> 0 | AB104: 0 | AC104: 0
C105: Devolved amount (Excluding amounts relating to property management and permanent staff costs) | Z105: =IF(ISBLANK('Post-holder data'!$DE$5),0,'Post-holder data'!$DE$5) -> 0 | AA105: =IF(Z105>0,+((V105-Y105)/'Post-holder data'!$DE$5),0) -> 0 | AB105: 0 | AC105: 0
Z106: =IF(ISBLANK('Post-holder data'!$DE$5),0,'Post-holder data'!$DE$5) -> 0 | AA106: =IF(Z106>0,+((V106-Y106)/'Post-holder data'!$DE$5),0) -> 0 | AB106: 0 | AC106: 0
C107: None | U107: 0 | V107: 0 | W107: =+Y107+AA107 -> 0 | X107: 0 | Y107: 0 | Z107: =IF(ISBLANK('Post-holder data'!$DE$5),0,'Post-holder data'!$DE$5) -> 0 | AA107: =IF(Z107>0,+((V107-Y107)/'Post-holder data'!$DE$5),0) -> 0 | AB107: 0 | AC107: 0
Z108: =IF(ISBLANK('Post-holder data'!$DE$5),0,'Post-holder data'!$DE$5) -> 0 | AA108: =IF(Z108>0,+((V108-Y108)/'Post-holder data'!$DE$5),0) -> 0 | AB108: 0 | AC108: 0
C109: Up to £10,000 | U109: 8 | V109: 0 | W109: =+Y109+AA109 -> 0 | X109: 0 | Y109: 0 | Z109: =IF(ISBLANK('Post-holder data'!$DE$5),0,'Post-holder data'!$DE$5) -> 0 | AA109: =IF(Z109>0,+((V109-Y109)/'Post-holder data'!$DE$5),0) -> 0 | AB109: 0 | AC109: 0
Z110: =IF(ISBLANK('Post-holder data'!$DE$5),0,'Post-holder data'!$DE$5) -> 0 | AA110: =IF(Z110>0,+((V110-Y110)/'Post-holder data'!$DE$5),0) -> 0 | AB110: 0 | AC110: 0
C111: £10,001 to £50,000 | U111: 16 | V111: 0 | W111: =+Y111+AA111 -> 0 | X111: 0 | Y111: 0 | Z111: =IF(ISBLANK('Post-holder data'!$DE$5),0,'Post-holder data'!$DE$5) -> 0 | AA111: =IF(Z111>0,+((V111-Y111)/'Post-holder data'!$DE$5),0) -> 0 | AB111: 0 | AC111: 0
Z112: =IF(ISBLANK('Post-holder data'!$DE$5),0,'Post-holder data'!$DE$5) -> 0 | AA112: =IF(Z112>0,+((V112-Y112)/'Post-holder data'!$DE$5),0) -> 0 | AB112: 0 | AC112: 0
C113: £50,001 to £100,000 | U113: 24 | V113: 0 | W113: =+Y113+AA113 -> 0 | X113: 0 | Y113: 0 | Z113: =IF(ISBLANK('Post-holder data'!$DE$5),0,'Post-holder data'!$DE$5) -> 0 | AA113: =IF(Z113>0,+((V113-Y113)/'Post-holder data'!$DE$5),0) -> 0 | AB113: 0 | AC113: 0
Z114: =IF(ISBLANK('Post-holder data'!$DE$5),0,'Post-holder data'!$DE$5) -> 0 | AA114: =IF(Z114>0,+((V114-Y114)/'Post-holder data'!$DE$5),0) -> 0 | AB114: 0 | AC114: 0
C115: £100,001 to £250,000 | U115: 32 | V115: 0 | W115: =+Y115+AA115 -> 0 | X115: 0 | Y115: 0 | Z115: =IF(ISBLANK('Post-holder data'!$DE$5),0,'Post-holder data'!$DE$5) -> 0 | AA115: =IF(Z115>0,+((V115-Y115)/'Post-holder data'!$DE$5),0) -> 0 | AB115: 0 | AC115: 0
Z116: =IF(ISBLANK('Post-holder data'!$DE$5),0,'Post-holder data'!$DE$5) -> 0 | AA116: =IF(Z116>0,+((V116-Y116)/'Post-holder data'!$DE$5),0) -> 0 | AB116: 0 | AC116: 0
C117: Over £250,000 | U117: 40 | V117: 0 | W117: =+Y117+AA117 -> 0 | X117: 0 | Y117: 0 | Z117: =IF(ISBLANK('Post-holder data'!$DE$5),0,'Post-holder data'!$DE$5) -> 0 | AA117: =IF(Z117>0,+((V117-Y117)/'Post-holder data'!$DE$5),0) -> 0 | AB117: 0 | AC117: 0
Z118: =IF(ISBLANK('Post-holder data'!$DE$5),0,'Post-holder data'!$DE$5) -> 0 | AA118: =IF(Z118>0,+((V118-Y118)/'Post-holder data'!$DE$5),0) -> 0 | AB118: 0 | AC118: 0
B119: 1.10 Physical nature of school | Z119: =IF(ISBLANK('Post-holder data'!$DE$5),0,'Post-holder data'!$DE$5) -> 0 | AA119: =IF(Z119>0,+((V119-Y119)/'Post-holder data'!$DE$5),0) -> 0 | AB119: 0 | AC119: 0
V120: Deputes | W120: SMT members | Y120: SMT members | Z120: =IF(ISBLANK('Post-holder data'!$DE$5),0,'Post-holder data'!$DE$5) -> 0
C121: Multi-site (or more than one) school | U121: 1.1 | V121: 1.1 | W121: =+Y121+AA121 -> 1.1 | X121: 1 | Y121: 1.1 | Z121: =IF(ISBLANK('Post-holder data'!$DE$5),0,'Post-holder data'!$DE$5) -> 0 | AA121: =IF(Z121>0,+((V121-Y121)/'Post-holder data'!$DE$5),0) -> 0 | AB121: 0 | AC121: 0
Z122: =IF(ISBLANK('Post-holder data'!$DE$5),0,'Post-holder data'!$DE$5) -> 0 | AA122: =IF(Z122>0,+((V122-Y122)/'Post-holder data'!$DE$5),0) -> 0 | AB122: 0 | AC122: 0
C123: Number of children with transport in to school(s) | Z123: =IF(ISBLANK('Post-holder data'!$DE$5),0,'Post-holder data'!$DE$5) -> 0 | AA123: =IF(Z123>0,+((V123-Y123)/'Post-holder data'!$DE$5),0) -> 0 | AB123: 0 | AC123: 0
V124: Deputes | W124: SMT members | X124: PTs | Y124: SMT members | Z124: =IF(ISBLANK('Post-holder data'!$DE$5),0,'Post-holder data'!$DE$5) -> 0
D125: 0 to 50 | U125: 2 | V125: 1 | W125: =+Y125+AA125 -> 1 | X125: 0 | Y125: 1 | Z125: =IF(ISBLANK('Post-holder data'!$DE$5),0,'Post-holder data'!$DE$5) -> 0 | AA125: =IF(Z125>0,+((V125-Y125)/'Post-holder data'!$DE$5),0) -> 0 | AB125: 0 | AC125: 0
Z126: =IF(ISBLANK('Post-holder data'!$DE$5),0,'Post-holder data'!$DE$5) -> 0 | AA126: =IF(Z126>0,+((V126-Y126)/'Post-holder data'!$DE$5),0) -> 0 | AB126: 0 | AC126: 0
D127: 51 to 100 | U127: 4 | V127: 2 | W127: =+Y127+AA127 -> 2 | X127: 0 | Y127: 2 | Z127: =IF(ISBLANK('Post-holder data'!$DE$5),0,'Post-holder data'!$DE$5) -> 0 | AA127: =IF(Z127>0,+((V127-Y127)/'Post-holder data'!$DE$5),0) -> 0 | AB127: 0 | AC127: 0
Z128: =IF(ISBLANK('Post-holder data'!$DE$5),0,'Post-holder data'!$DE$5) -> 0 | AA128: =IF(Z128>0,+((V128-Y128)/'Post-holder data'!$DE$5),0) -> 0 | AB128: 0 | AC128: 0
D129: 101 to 200 | U129: 6 | V129: 3 | W129: =+Y129+AA129 -> 3 | X129: 0 | Y129: 3 | Z129: =IF(ISBLANK('Post-holder data'!$DE$5),0,'Post-holder data'!$DE$5) -> 0 | AA129: =IF(Z129>0,+((V129-Y129)/'Post-holder data'!$DE$5),0) -> 0 | AB129: 0 | AC129: 0
Z130: =IF(ISBLANK('Post-holder data'!$DE$5),0,'Post-holder data'!$DE$5) -> 0 | AA130: =IF(Z130>0,+((V130-Y130)/'Post-holder data'!$DE$5),0) -> 0 | AB130: 0 | AC130: 0
D131: 201 to 300 | U131: 8 | V131: 4 | W131: =+Y131+AA131 -> 4 | X131: 0 | Y131: 4 | Z131: =IF(ISBLANK('Post-holder data'!$DE$5),0,'Post-holder data'!$DE$5) -> 0 | AA131: =IF(Z131>0,+((V131-Y131)/'Post-holder data'!$DE$5),0) -> 0 | AB131: 0 | AC131: 0
Z132: =IF(ISBLANK('Post-holder data'!$DE$5),0,'Post-holder data'!$DE$5) -> 0 | AA132: =IF(Z132>0,+((V132-Y132)/'Post-holder data'!$DE$5),0) -> 0 | AB132: 0 | AC132: 0
D133: 301 to 400 | U133: 10 | V133: 5 | W133: =+Y133+AA133 -> 5 | X133: 0 | Y133: 5 | Z133: =IF(ISBLANK('Post-holder data'!$DE$5),0,'Post-holder data'!$DE$5) -> 0 | AA133: =IF(Z133>0,+((V133-Y133)/'Post-holder data'!$DE$5),0) -> 0 | AB133: 0 | AC133: 0
Z134: =IF(ISBLANK('Post-holder data'!$DE$5),0,'Post-holder data'!$DE$5) -> 0 | AA134: =IF(Z134>0,+((V134-Y134)/'Post-holder data'!$DE$5),0) -> 0 | AB134: 0 | AC134: 0
D135: Over 400 | U135: 12 | V135: 6 | W135: =+Y135+AA135 -> 6 | X135: 0 | Y135: 6 | Z135: =IF(ISBLANK('Post-holder data'!$DE$5),0,'Post-holder data'!$DE$5) -> 0 | AA135: =IF(Z135>0,+((V135-Y135)/'Post-holder data'!$DE$5),0) -> 0 | AB135: 0 | AC135: 0
Z136: =IF(ISBLANK('Post-holder data'!$DE$5),0,'Post-holder data'!$DE$5) -> 0 | AA136: =IF(Z136>0,+((V136-Y136)/'Post-holder data'!$DE$5),0) -> 0 | AB136: 0 | AC136: 0
B137: 1.11 Name of post | Z137: =IF(ISBLANK('Post-holder data'!$DE$5),0,'Post-holder data'!$DE$5) -> 0 | AA137: =IF(Z137>0,+((V137-Y137)/'Post-holder data'!$DE$5),0) -> 0 | AB137: 0 | AC137: 0
Z138: =IF(ISBLANK('Post-holder data'!$DE$5),0,'Post-holder data'!$DE$5) -> 0 | AA138: =IF(Z138>0,+((V138-Y138)/'Post-holder data'!$DE$5),0) -> 0 | AB138: 0 | AC138: 0
B139: 1.12 Name of post holder | Z139: =IF(ISBLANK('Post-holder data'!$DE$5),0,'Post-holder data'!$DE$5) -> 0 | AA139: =IF(Z139>0,+((V139-Y139)/'Post-holder data'!$DE$5),0) -> 0 | AB139: 0 | AC139: 0
Z140: =IF(ISBLANK('Post-holder data'!$DE$5),0,'Post-holder data'!$DE$5) -> 0 | AA140: =IF(Z140>0,+((V140-Y140)/'Post-holder data'!$DE$5),0) -> 0 | AB140: 0 | AC140: 0
C141: Salutation | Z141: =IF(ISBLANK('Post-holder data'!$DE$5),0,'Post-holder data'!$DE$5) -> 0 | AA141: =IF(Z141>0,+((V141-Y141)/'Post-holder data'!$DE$5),0) -> 0 | AB141: 0 | AC141: 0
Z142: =IF(ISBLANK('Post-holder data'!$DE$5),0,'Post-holder data'!$DE$5) -> 0 | AA142: =IF(Z142>0,+((V142-Y142)/'Post-holder data'!$DE$5),0) -> 0 | AB142: 0 | AC142: 0
C143: Forename | Z143: =IF(ISBLANK('Post-holder data'!$DE$5),0,'Post-holder data'!$DE$5) -> 0 | AA143: =IF(Z143>0,+((V143-Y143)/'Post-holder data'!$DE$5),0) -> 0 | AB143: 0 | AC143: 0
Z144: =IF(ISBLANK('Post-holder data'!$DE$5),0,'Post-holder data'!$DE$5) -> 0 | AA144: =IF(Z144>0,+((V144-Y144)/'Post-holder data'!$DE$5),0) -> 0 | AB144: 0 | AC144: 0
C145: Surname | Z145: =IF(ISBLANK('Post-holder data'!$DE$5),0,'Post-holder data'!$DE$5) -> 0 | AA145: =IF(Z145>0,+((V145-Y145)/'Post-holder data'!$DE$5),0) -> 0 | AB145: =+W145-Y145 -> 0 | AC145: =+V145-W145 -> 0
Z146: =IF(ISBLANK('Post-holder data'!$DE$5),0,'Post-holder data'!$DE$5) -> 0 | AA146: =IF(Z146>0,+((V146-Y146)/'Post-holder data'!$DE$5),0) -> 0 | AB146: 0 | AC146: 0
B147: 1.13 Staff / payroll reference number | Z147: =IF(ISBLANK('Post-holder data'!$DE$5),0,'Post-holder data'!$DE$5) -> 0 | AA147: =IF(Z147>0,+((V147-Y147)/'Post-holder data'!$DE$5),0) -> 0 | AB147: 0 | AC147: 0
Z148: =IF(ISBLANK('Post-holder data'!$DE$5),0,'Post-holder data'!$DE$5) -> 0 | AA148: =IF(Z148>0,+((V148-Y148)/'Post-holder data'!$DE$5),0) -> 0 | AB148: 0 | AC148: 0
B149: 1.14 Gender | Z149: =IF(ISBLANK('Post-holder data'!$DE$5),0,'Post-holder data'!$DE$5) -> 0 | AA149: =IF(Z149>0,+((V149-Y149)/'Post-holder data'!$DE$5),0) -> 0 | AB149: 0 | AC149: 0
C150: Male | Z150: =IF(ISBLANK('Post-holder data'!$DE$5),0,'Post-holder data'!$DE$5) -> 0 | AA150: =IF(Z150>0,+((V150-Y150)/'Post-holder data'!$DE$5),0) -> 0 | AB150: 0 | AC150: 0
Z151: =IF(ISBLANK('Post-holder data'!$DE$5),0,'Post-holder data'!$DE$5) -> 0 | AA151: =IF(Z151>0,+((V151-Y151)/'Post-holder data'!$DE$5),0) -> 0 | AB151: 0 | AC151: 0
C152: Female | Z152: =IF(ISBLANK('Post-holder data'!$DE$5),0,'Post-holder data'!$DE$5) -> 0 | AA152: =IF(Z152>0,+((V152-Y152)/'Post-holder data'!$DE$5),0) -> 0 | AB152: 0 | AC152: 0
Z153: =IF(ISBLANK('Post-holder data'!$DE$5),0,'Post-holder data'!$DE$5) -> 0 | AA153: =IF(Z153>0,+((V153-Y153)/'Post-holder data'!$DE$5),0) -> 0 | AB153: 0 | AC153: 0
Z154: =IF(ISBLANK('Post-holder data'!$DE$5),0,'Post-holder data'!$DE$5) -> 0 | AA154: =IF(Z154>0,+((V154-Y154)/'Post-holder data'!$DE$5),0) -> 0 | AB154: 0 | AC154: 0
A155: THE JOB HOLDER QUESTIONNAIRE | Z155: =IF(ISBLANK('Post-holder data'!$DE$5),0,'Post-holder data'!$DE$5) -> 0 | AA155: =IF(Z155>0,+((V155-Y155)/'Post-holder data'!$DE$5),0) -> 0 | AB155: 0 | AC155: 0
Z156: =IF(ISBLANK('Post-holder data'!$DE$5),0,'Post-holder data'!$DE$5) -> 0 | AA156: =IF(Z156>0,+((V156-Y156)/'Post-holder data'!$DE$5),0) -> 0 | AB156: 0 | AC156: 0
Z157: =IF(ISBLANK('Post-holder data'!$DE$5),0,'Post-holder data'!$DE$5) -> 0 | AA157: =IF(Z157>0,+((V157-Y157)/'Post-holder data'!$DE$5),0) -> 0 | AB157: 0 | AC157: 0
B158: 2. RESPONSIBILITY FOR THE LEADERSHIP, GOOD MANAGEMENT | Z158: =IF(ISBLANK('Post-holder data'!$DE$5),0,'Post-holder data'!$DE$5) -> 0 | AA158: =IF(Z158>0,+((V158-Y158)/'Post-holder data'!$DE$5),0) -> 0 | AB158: 0 | AC158: 0
B159: AND STRATEGIC DIRECTION OF COLLEAGUES | Z159: =IF(ISBLANK('Post-holder data'!$DE$5),0,'Post-holder data'!$DE$5) -> 0 | AA159: =IF(Z159>0,+((V159-Y159)/'Post-holder data'!$DE$5),0) -> 0 | AB159: 0 | AC159: 0
Z160: =IF(ISBLANK('Post-holder data'!$DE$5),0,'Post-holder data'!$DE$5) -> 0 | AA160: =IF(Z160>0,+((V160-Y160)/'Post-holder data'!$DE$5),0) -> 0 | AB160: 0 | AC160: 0
V161: 0.69 | W161: =+Y161+AA161 -> 0.79 | X161: 1 | Y161: 0.79 | Z161: =IF(ISBLANK('Post-holder data'!$DE$5),0,'Post-holder data'!$DE$5) -> 0 | AA161: =IF(Z161>0,+((V161-Y161)/'Post-holder data'!$DE$5),0) -> 0 | AB161: 0 | AC161: -0.1
B162: 2.1 Line management of teaching staff | Z162: =IF(ISBLANK('Post-holder data'!$DE$5),0,'Post-holder data'!$DE$5) -> 0 | AA162: =IF(Z162>0,+((V162-Y162)/'Post-holder data'!$DE$5),0) -> 0 | AB162: 0 | AC162: 0
T163: 2 | Z163: =IF(ISBLANK('Post-holder data'!$DE$5),0,'Post-holder data'!$DE$5) -> 0 | AA163: =IF(Z163>0,+((V163-Y163)/'Post-holder data'!$DE$5),0) -> 0 | AB163: 0 | AC163: 0
C164: None | T164: 0 | U164: N/A | V164: 0 | W164: =+Y164+AA164 -> 0 | X164: 0 | Y164: 0 | Z164: =IF(ISBLANK('Post-holder data'!$DE$5),0,'Post-holder data'!$DE$5) -> 0 | AA164: =IF(Z164>0,+((V164-Y164)/'Post-holder data'!$DE$5),0) -> 0 | AB164: 0 | AC164: 0
Z165: =IF(ISBLANK('Post-holder data'!$DE$5),0,'Post-holder data'!$DE$5) -> 0 | AA165: =IF(Z165>0,+((V165-Y165)/'Post-holder data'!$DE$5),0) -> 0 | AB165: 0 | AC165: 0
C166: 1 | T166: 1 | U166: N/A | V166: 5 | W166: =+Y166+AA166 -> 5 | X166: 5 | Y166: 5 | Z166: =IF(ISBLANK('Post-holder data'!$DE$5),0,'Post-holder data'!$DE$5) -> 0 | AA166: =IF(Z166>0,+((V166-Y166)/'Post-holder data'!$DE$5),0) -> 0 | AB166: 0 | AC166: 0
Z167: =IF(ISBLANK('Post-holder data'!$DE$5),0,'Post-holder data'!$DE$5) -> 0 | AA167: =IF(Z167>0,+((V167-Y167)/'Post-holder data'!$DE$5),0) -> 0 | AB167: 0 | AC167: 0
C168: 2 to 5 | T168: 2.5 | U168: N/A | V168: 10 | W168: =+Y168+AA168 -> 10 | X168: 10 | Y168: 10 | Z168: =IF(ISBLANK('Post-holder data'!$DE$5),0,'Post-holder data'!$DE$5) -> 0 | AA168: =IF(Z168>0,+((V168-Y168)/'Post-holder data'!$DE$5),0) -> 0 | AB168: 0 | AC168: 0
Z169: =IF(ISBLANK('Post-holder data'!$DE$5),0,'Post-holder data'!$DE$5) -> 0 | AA169: =IF(Z169>0,+((V169-Y169)/'Post-holder data'!$DE$5),0) -> 0 | AB169: 0 | AC169: 0
C170: 6 to 10 | T170: 4.5 | U170: N/A | V170: 20 | W170: =+Y170+AA170 -> 20 | X170: 20 | Y170: 20 | Z170: =IF(ISBLANK('Post-holder data'!$DE$5),0,'Post-holder data'!$DE$5) -> 0 | AA170: =IF(Z170>0,+((V170-Y170)/'Post-holder data'!$DE$5),0) -> 0 | AB170: 0 | AC170: 0
Z171: =IF(ISBLANK('Post-holder data'!$DE$5),0,'Post-holder data'!$DE$5) -> 0 | AA171: =IF(Z171>0,+((V171-Y171)/'Post-holder data'!$DE$5),0) -> 0 | AB171: 0 | AC171: 0
C172: 11 to 25 | T172: 8 | U172: N/A | V172: 30 | W172: =+Y172+AA172 -> 30 | X172: 30 | Y172: 30 | Z172: =IF(ISBLANK('Post-holder data'!$DE$5),0,'Post-holder data'!$DE$5) -> 0 | AA172: =IF(Z172>0,+((V172-Y172)/'Post-holder data'!$DE$5),0) -> 0 | AB172: 0 | AC172: 0
Z173: =IF(ISBLANK('Post-holder data'!$DE$5),0,'Post-holder data'!$DE$5) -> 0 | AA173: =IF(Z173>0,+((V173-Y173)/'Post-holder data'!$DE$5),0) -> 0 | AB173: 0 | AC173: 0
C174: 26 to 50 | T174: 15 | U174: N/A | V174: 40 | W174: =+Y174+AA174 -> 40 | X174: 40 | Y174: 40 | Z174: =IF(ISBLANK('Post-holder data'!$DE$5),0,'Post-holder data'!$DE$5) -> 0 | AA174: =IF(Z174>0,+((V174-Y174)/'Post-holder data'!$DE$5),0) -> 0 | AB174: 0 | AC174: 0
Z175: =IF(ISBLANK('Post-holder data'!$DE$5),0,'Post-holder data'!$DE$5) -> 0 | AA175: =IF(Z175>0,+((V175-Y175)/'Post-holder data'!$DE$5),0) -> 0 | AB175: 0 | AC175: 0
C176: Over 50 | T176: 25 | U176: N/A | V176: 50 | W176: =+Y176+AA176 -> 50 | X176: 50 | Y176: 50 | Z176: =IF(ISBLANK('Post-holder data'!$DE$5),0,'Post-holder data'!$DE$5) -> 0 | AA176: =IF(Z176>0,+((V176-Y176)/'Post-holder data'!$DE$5),0) -> 0 | AB176: 0 | AC176: 0
Z177: =IF(ISBLANK('Post-holder data'!$DE$5),0,'Post-holder data'!$DE$5) -> 0 | AA177: =IF(Z177>0,+((V177-Y177)/'Post-holder data'!$DE$5),0) -> 0 | AB177: 0 | AC177: 0
B178: 2.2 Line management of other staff | V178: 0.69 | W178: =+Y178+AA178 -> 0.79 | X178: 1 | Y178: 0.79 | Z178: =IF(ISBLANK('Post-holder data'!$DE$5),0,'Post-holder data'!$DE$5) -> 0 | AA178: =IF(Z178>0,+((V178-Y178)/'Post-holder data'!$DE$5),0) -> 0 | AB178: 0 | AC178: -0.1
Z179: =IF(ISBLANK('Post-holder data'!$DE$5),0,'Post-holder data'!$DE$5) -> 0 | AA179: =IF(Z179>0,+((V179-Y179)/'Post-holder data'!$DE$5),0) -> 0 | AB179: 0 | AC179: 0
C180: None | T180: 0 | U180: N/A | V180: 0 | W180: =+Y180+AA180 -> 0 | X180: 0 | Y180: 0 | Z180: =IF(ISBLANK('Post-holder data'!$DE$5),0,'Post-holder data'!$DE$5) -> 0 | AA180: =IF(Z180>0,+((V180-Y180)/'Post-holder data'!$DE$5),0) -> 0 | AB180: 0 | AC180: 0
Z181: =IF(ISBLANK('Post-holder data'!$DE$5),0,'Post-holder data'!$DE$5) -> 0 | AA181: =IF(Z181>0,+((V181-Y181)/'Post-holder data'!$DE$5),0) -> 0 | AB181: 0 | AC181: 0
C182: 1 | T182: 1.125 | U182: N/A | V182: 3 | W182: =+Y182+AA182 -> 3 | X182: 3 | Y182: 3 | Z182: =IF(ISBLANK('Post-holder data'!$DE$5),0,'Post-holder data'!$DE$5) -> 0 | AA182: =IF(Z182>0,+((V182-Y182)/'Post-holder data'!$DE$5),0) -> 0 | AB182: 0 | AC182: 0
Z183: =IF(ISBLANK('Post-holder data'!$DE$5),0,'Post-holder data'!$DE$5) -> 0 | AA183: =IF(Z183>0,+((V183-Y183)/'Post-holder data'!$DE$5),0) -> 0 | AB183: 0 | AC183: 0
C184: 2 to 10 | T184: 3.375 | U184: N/A | V184: 6 | W184: =+Y184+AA184 -> 6 | X184: 6 | Y184: 6 | Z184: =IF(ISBLANK('Post-holder data'!$DE$5),0,'Post-holder data'!$DE$5) -> 0 | AA184: =IF(Z184>0,+((V184-Y184)/'Post-holder data'!$DE$5),0) -> 0 | AB184: 0 | AC184: 0
Z185: =IF(ISBLANK('Post-holder data'!$DE$5),0,'Post-holder data'!$DE$5) -> 0 | AA185: =IF(Z185>0,+((V185-Y185)/'Post-holder data'!$DE$5),0) -> 0 | AB185: 0 | AC185: 0
C186: 11 to 25 | T186: 6 | U186: N/A | V186: 10 | W186: =+Y186+AA186 -> 10 | X186: 10 | Y186: 10 | Z186: =IF(ISBLANK('Post-holder data'!$DE$5),0,'Post-holder data'!$DE$5) -> 0 | AA186: =IF(Z186>0,+((V186-Y186)/'Post-holder data'!$DE$5),0) -> 0 | AB186: 0 | AC186: 0
Z187: =IF(ISBLANK('Post-holder data'!$DE$5),0,'Post-holder data'!$DE$5) -> 0 | AA187: =IF(Z187>0,+((V187-Y187)/'Post-holder data'!$DE$5),0) -> 0 | AB187: 0 | AC187: 0
C188: Over 25 | T188: 11.25 | U188: N/A | V188: 20 | W188: =+Y188+AA188 -> 20 | X188: 20 | Y188: 20 | Z188: =IF(ISBLANK('Post-holder data'!$DE$5),0,'Post-holder data'!$DE$5) -> 0 | AA188: =IF(Z188>0,+((V188-Y188)/'Post-holder data'!$DE$5),0) -> 0 | AB188: 0 | AC188: 0
Z189: =IF(ISBLANK('Post-holder data'!$DE$5),0,'Post-holder data'!$DE$5) -> 0 | AA189: =IF(Z189>0,+((V189-Y189)/'Post-holder data'!$DE$5),0) -> 0 | AB189: 0 | AC189: 0
B190: 2.3 To manage resources including budgets | Z190: =IF(ISBLANK('Post-holder data'!$DE$5),0,'Post-holder data'!$DE$5) -> 0 | AA190: =IF(Z190>0,+((V190-Y190)/'Post-holder data'!$DE$5),0) -> 0 | AB190: 0 | AC190: 0
Z191: =IF(ISBLANK('Post-holder data'!$DE$5),0,'Post-holder data'!$DE$5) -> 0 | AA191: =IF(Z191>0,+((V191-Y191)/'Post-holder data'!$DE$5),0) -> 0 | AB191: 0 | AC191: 0
C192: Size of budget managed | Z192: =IF(ISBLANK('Post-holder data'!$DE$5),0,'Post-holder data'!$DE$5) -> 0 | AA192: =IF(Z192>0,+((V192-Y192)/'Post-holder data'!$DE$5),0) -> 0 | AB192: 0 | AC192: 0
Z193: =IF(ISBLANK('Post-holder data'!$DE$5),0,'Post-holder data'!$DE$5) -> 0 | AA193: =IF(Z193>0,+((V193-Y193)/'Post-holder data'!$DE$5),0) -> 0 | AB193: 0 | AC193: 0
C194: None | U194: N/A | V194: 0 | W194: =+Y194+AA194 -> 0 | X194: 0 | Y194: 0 | Z194: =IF(ISBLANK('Post-holder data'!$DE$5),0,'Post-holder data'!$DE$5) -> 0 | AA194: =IF(Z194>0,+((V194-Y194)/'Post-holder data'!$DE$5),0) -> 0 | AB194: 0 | AC194: 0
Z195: =IF(ISBLANK('Post-holder data'!$DE$5),0,'Post-holder data'!$DE$5) -> 0 | AA195: =IF(Z195>0,+((V195-Y195)/'Post-holder data'!$DE$5),0) -> 0 | AB195: 0 | AC195: 0
C196: Up to £1,000 | U196: N/A | V196: 2 | W196: =+Y196+AA196 -> 2 | X196: 2 | Y196: 2 | Z196: =IF(ISBLANK('Post-holder data'!$DE$5),0,'Post-holder data'!$DE$5) -> 0 | AA196: =IF(Z196>0,+((V196-Y196)/'Post-holder data'!$DE$5),0) -> 0 | AB196: 0 | AC196: 0
Z197: =IF(ISBLANK('Post-holder data'!$DE$5),0,'Post-holder data'!$DE$5) -> 0 | AA197: =IF(Z197>0,+((V197-Y197)/'Post-holder data'!$DE$5),0) -> 0 | AB197: 0 | AC197: 0
C198: £1,001 to £5,000 | U198: N/A | V198: 4 | W198: =+Y198+AA198 -> 4 | X198: 4 | Y198: 4 | Z198: =IF(ISBLANK('Post-holder data'!$DE$5),0,'Post-holder data'!$DE$5) -> 0 | AA198: =IF(Z198>0,+((V198-Y198)/'Post-holder data'!$DE$5),0) -> 0 | AB198: 0 | AC198: 0
Z199: =IF(ISBLANK('Post-holder data'!$DE$5),0,'Post-holder data'!$DE$5) -> 0 | AA199: =IF(Z199>0,+((V199-Y199)/'Post-holder data'!$DE$5),0) -> 0 | AB199: 0 | AC199: 0
C200: £5,001 to £10,000 | U200: N/A | V200: 6 | W200: =+Y200+AA200 -> 6 | X200: 6 | Y200: 6 | Z200: =IF(ISBLANK('Post-holder data'!$DE$5),0,'Post-holder data'!$DE$5) -> 0 | AA200: =IF(Z200>0,+((V200-Y200)/'Post-holder data'!$DE$5),0) -> 0 | AB200: 0 | AC200: 0
Z201: =IF(ISBLANK('Post-holder data'!$DE$5),0,'Post-holder data'!$DE$5) -> 0 | AA201: =IF(Z201>0,+((V201-Y201)/'Post-holder data'!$DE$5),0) -> 0 | AB201: 0 | AC201: 0
C202: £10,001 to £25,000 | U202: N/A | V202: 10 | W202: =+Y202+AA202 -> 10 | X202: 10 | Y202: 10 | Z202: =IF(ISBLANK('Post-holder data'!$DE$5),0,'Post-holder data'!$DE$5) -> 0 | AA202: =IF(Z202>0,+((V202-Y202)/'Post-holder data'!$DE$5),0) -> 0 | AB202: 0 | AC202: 0
Z203: =IF(ISBLANK('Post-holder data'!$DE$5),0,'Post-holder data'!$DE$5) -> 0 | AA203: =IF(Z203>0,+((V203-Y203)/'Post-holder data'!$DE$5),0) -> 0 | AB203: 0 | AC203: 0
C204: Over £25,000 | U204: N/A | V204: 14 | W204: =+Y204+AA204 -> 14 | X204: 14 | Y204: 14 | Z204: =IF(ISBLANK('Post-holder data'!$DE$5),0,'Post-holder data'!$DE$5) -> 0 | AA204: =IF(Z204>0,+((V204-Y204)/'Post-holder data'!$DE$5),0) -> 0 | AB204: 0 | AC204: 0
Z205: =IF(ISBLANK('Post-holder data'!$DE$5),0,'Post-holder data'!$DE$5) -> 0 | AA205: =IF(Z205>0,+((V205-Y205)/'Post-holder data'!$DE$5),0) -> 0 | AB205: 0 | AC205: 0
Z206: =IF(ISBLANK('Post-holder data'!$DE$5),0,'Post-holder data'!$DE$5) -> 0 | AA206: =IF(Z206>0,+((V206-Y206)/'Post-holder data'!$DE$5),0) -> 0 | AB206: 0 | AC206: 0
B207: 2.4 To manage health and safety | Z207: =IF(ISBLANK('Post-holder data'!$DE$5),0,'Post-holder data'!$DE$5) -> 0 | AA207: =IF(Z207>0,+((V207-Y207)/'Post-holder data'!$DE$5),0) -> 0 | AB207: 0 | AC207: 0
U208: 0.25 | V208: 0.25 | W208: =+Y208+AA208 -> 0.25 | X208: 0.25 | Y208: 0.25 | Z208: =IF(ISBLANK('Post-holder data'!$DE$5),0,'Post-holder data'!$DE$5) -> 0 | AA208: =IF(Z208>0,+((V208-Y208)/'Post-holder data'!$DE$5),0) -> 0 | AB208: 0 | AC208: 0
... 938 more rows

Sheet Calculations
A1: Local Authority | B1: School Reference | C1: Co-ordinator | D1: School Name | E1: Type of establishment | L1: School Roll | U1: Numbers of staff | X1: FME % | AC1: Total Budget £ | AD1: Devolved budget £ | AJ1: Multi-site? | AK1: No. of children with transport to school | AQ1: 1. WHOLE-SCHOOL INFORMATION | BD1: 2. RESPONSIBILITY FOR THE LEADERSHIP, GOOD MANAGEMENT & STRATEGIC DIRECTION OF COLLEAGUES | CQ1: 3. RESPONSIBILITY FOR CURRICULUM DEVELOPMENT & QUALITY ASSURANCE | EF1: 4. RESPONSIBILITY FOR WHOLE-SCHOOL POLICY & IMPLEMENTATION | EW1: 5. RESPONSIBILITY FOR WORKING WITH PARTNERS | FH1: GRAND TOTAL | FI1: SCHOOL TYPE | FJ1: POST TYPE | FK1: SCHOOL ROLL | FL1: SALARY | FM1: SALARY Point
AQ2: Local Authority | AR2: School Name and reference | AT2: More than one school? | AU2: Total no. of schools | AV2: Current post | AZ2: Name of post | BA2: Name of post holder | BB2: Gender | BD2: Total | BE2: 2.1 No. of teaching staff managed | BT2: 2.2 No. of other staff managed | CE2: 2.3 Amount of budget managed | CL2: 2.4 Health & safety | CQ2: Total | CR2: 3.1 CPD needs, career development and performance - Sub-total | CS2: 3.2 Development plan | CX2: 3.3 Subgects and classes | DW2: 3.4 Other formal curricular / management responsibilities | EE2: 3.5 Teaching time Sub-total | EF2: Total | EG2: 4.1 Pupil behaviour management | EJ2: 4.2 Guidance, pastoral care & pupil welfare | ES2: 4.3 Pupil assessment | EW2: Total | EX2: 5.1 To work with parents | FA2: 5.2 To work with colleagues in the same establishment | FD2: 5.3 To work with other establishments and agencies
A3: Name | E3: Primary | F3: Secondary | G3: Special | H3: Junior High School | I3: Other | J3: Includes nursery unit | K3: Includes SEN unit | L3: Up to 50 | M3: 51 to 100 | N3: 101 to 250 | O3: 251 to 500 | P3: 501 to 750 | Q3: 751 to 1000 | R3: 1001 to 1250 | S3: 1251 to 1500 | T3: Over 1500 | U3: Promoted posts | V3: Other teaching staff | W3: Other staff | X3: 0 to 10 | Y3: 11 to 20 | Z3: 21 to 30 | AA3: 31 to 40 | AB3: 41 to 100 | AD3: None | AE3: Up to 10000 | AF3: 10001 to 50000 | AG3: 50001 to 100000 | AH3: 100001 to 250000 | AI3: Over 250000 | AK3: 0 to 50 | AL3: 51 to 100 | AM3: 101 to 200 | AN3: 201 to 300 | AO3: 301 to 400 | AP3: Over 400 | AQ3: Name | AR3: Ref. (as in Whole School Data Sheet) | AS3: Name | AV3: HT | AW3: Formal depute role? | AX3: Member of SMT | AY3: PT | BB3: Male | BC3: Female | BE3: Sub-total | BF3: Number of staff | BM3: FTEs | BT3: Sub-total | BU3: Number of staff | BZ3: FTEs | CE3: Sub-total | CF3: None | CG3: Up to £1000 | CH3: £1001 to £5000 | CI3: £5001 to £10000 | CJ3: £10001 to £25000 | CK3: Over £25000 | CL3: Sub-total | CM3: High risk subject(s) | CN3: Other subgect(s) | CO3: Year groups and specialist sections | CP3: Whole Scool | CS3: Sub-total | CT3: With impact on: | CX3: Sub-total | CY3: Developing subjects | DE3: National Qualifications | DI3: Monitoring (no. of classes) | DW3: Sub-total | DX3: Whole-school timetabling | DY3: Whole-school responsibility for ICT | DZ3: Early years / nursery classes | EA3: Learning and / or behvioural support | EB3: A special needs unit / classes | EC3: Other specialist sections such as English as a second language | ED3: Primary section of combined school | EG3: Sub-total | EH3: Leading with impact on: | EJ3: Sub-total | EK3: With impact on: | EN3: Guidance case load | ES3: Sub-total | ET3: With impact on: | EX3: Sub-total | EY3: With impact on: | FA3: Sub-total | FB3: With impact on: | FD3: Sub-total | FE3: With impact on:
BF4: None | BG4: 1 | BH4: 2 to 5 | BI4: 6 to 10 | BJ4: 11 to 25 | BK4: 26 to 50 | BL4: 50+ | BM4: None | BN4: 1 | BO4: 2 to 5 | BP4: 6 to 10 | BQ4: 11 to 25 | BR4: 26 to 50 | BS4: 50+ | BU4: None | BV4: 1 | BW4: 2 to 10 | BX4: 11 to 25 | BY4: 25+ | BZ4: None | CA4: 1 | CB4: 2 to 10 | CC4: 11 to 25 | CD4: 25+ | CT4: Departments / subjects | CU4: Guidance & pastoral care | CV4: Year groups and specialist sections | CW4: Whole School | CY4: S1 | CZ4: S2 | DA4: S3 | DB4: S4 | DC4: S5 | DD4: S6 | DE4: S3 | DF4: S4 | DG4: S5 | DH4: S6 | DI4: Nursery | DJ4: P1 | DK4: P2 | DL4: P3 | DM4: P4 | DN4: P5 | DO4: P6 | DP4: P7 | DQ4: S1 | DR4: S2 | DS4: S3 | DT4: S4 | DU4: S5 | DV4: S6 | EH4: Year groups and specialist sections | EI4: Whole School | EK4: Guidance & pastoral care | EL4: Year groups and specialist sections | EM4: Whole School | EN4: None | EO4: 1 to 50 | EP4: 51 to 100 | EQ4: 101 to 200 | ER4: Over 200 | ET4: Departments / subgects | EU4: Year groups and specialist sections | EV4: Whole School | EY4: Year groups and specialist sections | EZ4: Whole School | FB4: Year groups and specialist sections | FC4: Whole School | FE4: Year groups and specialist sections | FF4: Whole School | FG4: Other establishments / agencies
A5: =+'Post-holder data'!B5 -> 0 | B5: =+'Post-holder data'!C5 -> School | D5: =VLOOKUP($B5,'Whole-school data'!$C$5:$AP$10,2,FALSE) -> 0 | E5: =IF(VLOOKUP($B5,'Whole-school data'!$C$5:$AP$10,3,FALSE)="y",IF(AV5="y",Weightings!$U$21,IF(AW5="y",Weightings!$V$21,IF(AX5="y",Weightings!$W$21,IF(AY5="y",Weightings!$X$21)))),"N") -> 1 | F5: =IF(VLOOKUP($B5,'Whole-school data'!$C$5:$AP$10,4,FALSE)="y",IF(AV5="y",Weightings!$U$23,IF(AW5="y",Weightings!$V$23,IF(AX5="y",Weightings!$W$23,IF(AY5="y",Weightings!$X$23)))),"N") -> N | G5: =IF(VLOOKUP($B5,'Whole-school data'!$C$5:$AP$10,5,FALSE)="y",IF(AV5="y",Weightings!$U$25,IF(AW5="y",Weightings!$V$25,IF(AX5="y",Weightings!$W$25,IF(AY5="y",Weightings!$X$25)))),"N") -> N | H5: =IF(VLOOKUP($B5,'Whole-school data'!$C$5:$AP$10,6,FALSE)="y",IF(AV5="y",Weightings!$U$27,IF(AW5="y",Weightings!$V$27,IF(AX5="y",Weightings!$W$27,IF(AY5="y",Weightings!$X$27)))),"N") -> N | I5: =IF(VLOOKUP($B5,'Whole-school data'!$C$5:$AP$10,7,FALSE)="y",IF(AV5="y",Weightings!$U$29,IF(AW5="y",Weightings!$V$29,IF(AX5="y",Weightings!$W$29,IF(AY5="y",Weightings!$X$29)))),"N") -> N | J5: =IF(VLOOKUP($B5,'Whole-school data'!$C$5:$AP$10,8,FALSE)="y",IF(AV5="y",Weightings!$U$39,IF(AW5="y",Weightings!$V$39,IF(AX5="y",Weightings!$W$39,IF(AY5="y",Weightings!$X$39)))),1) -> 1 | K5: =IF(VLOOKUP($B5,'Whole-school data'!$C$5:$AP$10,9,FALSE)="y",IF(AV5="y",Weightings!$U$41,IF(AW5="y",Weightings!$V$41,IF(AX5="y",Weightings!$W$41,IF(AY5="y",Weightings!$X$41)))),1) -> 1 | L5: =IF(VLOOKUP($B5,'Whole-school data'!$C$5:$AP$10,10,FALSE)="Y",IF(AV5="y",Weightings!$U$47,IF(AW5="y",Weightings!$V$47,IF(AX5="y",Weightings!$W$47,IF(AY5="y",Weightings!$X$47)))),"N") -> 8 | M5: =IF(VLOOKUP($B5,'Whole-school data'!$C$5:$AP$10,11,FALSE)="Y",IF(AV5="y",Weightings!$U$49,IF(AW5="y",Weightings!$V$49,IF(AX5="y",Weightings!$W$49,IF(AY5="y",Weightings!$X$49)))),"N") -> N | N5: =IF(VLOOKUP($B5,'Whole-school data'!$C$5:$AP$10,12,FALSE)="Y",IF(AV5="y",Weightings!$U$51,IF(AW5="y",Weightings!$V$51,IF(AX5="y",Weightings!$W$51,IF(AY5="y",Weightings!$X$51)))),"N") -> N | O5: =IF(VLOOKUP($B5,'Whole-school data'!$C$5:$AP$10,13,FALSE)="Y",IF(AV5="y",Weightings!$U$53,IF(AW5="y",Weightings!$V$53,IF(AX5="y",Weightings!$W$53,IF(AY5="y",Weightings!$X$53)))),"N") -> N | P5: =IF(VLOOKUP($B5,'Whole-school data'!$C$5:$AP$10,14,FALSE)="Y",IF(AV5="y",Weightings!$U$55,IF(AW5="y",Weightings!$V$55,IF(AX5="y",Weightings!$W$55,IF(AY5="y",Weightings!$X$55)))),"N") -> N | Q5: =IF(VLOOKUP($B5,'Whole-school data'!$C$5:$AP$10,15,FALSE)="Y",IF(AV5="y",Weightings!$U$57,IF(AW5="y",Weightings!$V$57,IF(AX5="y",Weightings!$W$57,IF(AY5="y",Weightings!$X$57)))),"N") -> N | R5: =IF(VLOOKUP($B5,'Whole-school data'!$C$5:$AP$10,16,FALSE)="Y",IF(AV5="y",Weightings!$U$59,IF(AW5="y",Weightings!$V$59,IF(AX5="y",Weightings!$W$59,IF(AY5="y",Weightings!$X$59)))),"N") -> N | S5: =IF(VLOOKUP($B5,'Whole-school data'!$C$5:$AP$10,17,FALSE)="Y",IF(AV5="y",Weightings!$U$61,IF(AW5="y",Weightings!$V$61,IF(AX5="y",Weightings!$W$61,IF(AY5="y",Weightings!$X$61)))),"N") -> N | T5: =IF(VLOOKUP($B5,'Whole-school data'!$C$5:$AP$10,18,FALSE)="Y",IF(AV5="y",Weightings!$U$63,IF(AW5="y",Weightings!$V$63,IF(AX5="y",Weightings!$W$63,IF(AY5="y",Weightings!$X$63)))),"N") -> N | U5: =VLOOKUP($B5,'Whole-school data'!$C$5:$AP$10,19,FALSE)*IF(AV5="y",Weightings!$U$67,IF(AW5="y",Weightings!$V$67,IF(AX5="y",Weightings!$W$67,IF(AY5="y",Weightings!$X$67)))) -> 0 | V5: =VLOOKUP($B5,'Whole-school data'!$C$5:$AP$10,20,FALSE)*IF(AV5="y",Weightings!$U$69,IF(AW5="y",Weightings!$V$69,IF(AX5="y",Weightings!$W$69,IF(AY5="y",Weightings!$X$69)))) -> 0 | W5: =VLOOKUP($B5,'Whole-school data'!$C$5:$AP$10,21,FALSE)*IF(AV5="y",Weightings!$U$71,IF(AW5="y",Weightings!$V$71,IF(AX5="y",Weightings!$W$71,IF(AY5="y",Weightings!$X$71)))) -> 0 | X5: =IF(VLOOKUP($B5,'Whole-school data'!$C$5:$AP$10,22,FALSE)="Y",IF(AV5="y",Weightings!$U$89,IF(AW5="y",Weightings!$V$89,IF(AX5="y",Weightings!$W$89,IF(AY5="y",Weightings!$X$89)))),"N") -> 0.75 | Y5: =IF(VLOOKUP($B5,'Whole-school data'!$C$5:$AP$10,23,FALSE)="Y",IF(AV5="y",Weightings!$U$91,IF(AW5="y",Weightings!$V$91,IF(AX5="y",Weightings!$W$91,IF(AY5="y",Weightings!$X$91)))),"N") -> N | Z5: =IF(VLOOKUP($B5,'Whole-school data'!$C$5:$AP$10,24,FALSE)="Y",IF(AV5="y",Weightings!$U$93,IF(AW5="y",Weightings!$V$93,IF(AX5="y",Weightings!$W$93,IF(AY5="y",Weightings!$X$93)))),"N") -> N | AA5: =IF(VLOOKUP($B5,'Whole-school data'!$C$5:$AP$10,25,FALSE)="Y",IF(AV5="y",Weightings!$U$95,IF(AW5="y",Weightings!$V$95,IF(AX5="y",Weightings!$W$95,IF(AY5="y",Weightings!$X$95)))),"N") -> N | AB5: =IF(VLOOKUP($B5,'Whole-school data'!$C$5:$AP$10,26,FALSE)="Y",IF(AV5="y",Weightings!$U$97,IF(AW5="y",Weightings!$V$97,IF(AX5="y",Weightings!$W$97,IF(AY5="y",Weightings!$X$97)))),"N") -> N | AC5: =VLOOKUP($B5,'Whole-school data'!$C$5:$AP$10,27,FALSE) -> 0 | AD5: =IF(VLOOKUP($B5,'Whole-school data'!$C$5:$AP$10,28,FALSE)="y",IF(AV5="y",Weightings!$U$107,IF(AW5="y",Weightings!$V$107,IF(AX5="y",Weightings!$W$107,IF(AY5="y",Weightings!$X$107)))),"N") -> 0 | AE5: =IF(VLOOKUP($B5,'Whole-school data'!$C$5:$AP$10,29,FALSE)="y",IF(AV5="y",Weightings!$U$109,IF(AW5="y",Weightings!$V$109,IF(AX5="y",Weightings!$W$109,IF(AY5="y",Weightings!$X$109)))),"N") -> N | AF5: =IF(VLOOKUP($B5,'Whole-school data'!$C$5:$AP$10,30,FALSE)="y",IF(AV5="y",Weightings!$U$111,IF(AW5="y",Weightings!$V$111,IF(AX5="y",Weightings!$W$111,IF(AY5="y",Weightings!$X$111)))),"N") -> N | AG5: =IF(VLOOKUP($B5,'Whole-school data'!$C$5:$AP$10,31,FALSE)="y",IF(AV5="y",Weightings!$U$113,IF(AW5="y",Weightings!$V$113,IF(AX5="y",Weightings!$W$113,IF(AY5="y",Weightings!$X$113)))),"N") -> N | AH5: =IF(VLOOKUP($B5,'Whole-school data'!$C$5:$AP$10,32,FALSE)="y",IF(AV5="y",Weightings!$U$115,IF(AW5="y",Weightings!$V$115,IF(AX5="y",Weightings!$W$115,IF(AY5="y",Weightings!$X$115)))),"N") -> N | AI5: =IF(VLOOKUP($B5,'Whole-school data'!$C$5:$AP$10,33,FALSE)="y",IF(AV5="y",Weightings!$U$117,IF(AW5="y",Weightings!$V$117,IF(AX5="y",Weightings!$W$117,IF(AY5="y",Weightings!$X$117)))),"N") -> N | AJ5: =IF(VLOOKUP($B5,'Whole-school data'!$C$5:$AP$10,40,FALSE)="y",IF(AV5="y",Weightings!$U$121,IF(AW5="y",Weightings!$V$121,IF(AX5="y",Weightings!$W$121,IF(AY5="y",Weightings!$X$121)))),1) -> 1 | AK5: =IF(VLOOKUP($B5,'Whole-school data'!$C$5:$AP$10,34,FALSE)="y",IF(AV5="y",Weightings!$U$125,IF(AW5="y",Weightings!$V$125,IF(AX5="y",Weightings!$W$125,IF(AY5="y",Weightings!$X$125)))),"N") -> 2 | AL5: =IF(VLOOKUP($B5,'Whole-school data'!$C$5:$AP$10,35,FALSE)="y",IF(AV5="y",Weightings!$U$127,IF(AW5="y",Weightings!$V$127,IF(AX5="y",Weightings!$W$127,IF(AY5="y",Weightings!$X$127)))),"N") -> N | AM5: =IF(VLOOKUP($B5,'Whole-school data'!$C$5:$AP$10,36,FALSE)="y",IF(AV5="y",Weightings!$U$129,IF(AW5="y",Weightings!$V$129,IF(AX5="y",Weightings!$W$129,IF(AY5="y",Weightings!$X$129)))),"N") -> N | AN5: =IF(VLOOKUP($B5,'Whole-school data'!$C$5:$AP$10,37,FALSE)="y",IF(AV5="y",Weightings!$U$131,IF(AW5="y",Weightings!$V$131,IF(AX5="y",Weightings!$W$131,IF(AY5="y",Weightings!$X$131)))),"N") -> N | AO5: =IF(VLOOKUP($B5,'Whole-school data'!$C$5:$AP$10,38,FALSE)="y",IF(AV5="y",Weightings!$U$133,IF(AW5="y",Weightings!$V$133,IF(AX5="y",Weightings!$W$133,IF(AY5="y",Weightings!$X$133)))),"N") -> N | AP5: =IF(VLOOKUP($B5,'Whole-school data'!$C$5:$AP$10,39,FALSE)="y",IF(AV5="y",Weightings!$U$135,IF(AW5="y",Weightings!$V$135,IF(AX5="y",Weightings!$W$135,IF(AY5="y",Weightings!$X$135)))),"N") -> N | AQ5: =+'Post-holder data'!B5 -> 0 | AR5: =+'Post-holder data'!C5 -> School | AS5: =+'Post-holder data'!D5 -> 0 | AT5: =+'Post-holder data'!$H5 ->  | AU5: =IF(ISNUMBER('Post-holder data'!I5),IF('Post-holder data'!I5>1,'Post-holder data'!$I5,1),1) -> 1 | AV5: =+'Post-holder data'!E5 -> y | AW5: =+'Post-holder data'!M5 ->  | AX5: =IF('Post-holder data'!M5="Y",0,+'Post-holder data'!L5) ->  | AY5: =+'Post-holder data'!G5 ->  | AZ5: =+'Post-holder data'!N5 -> 0 | BA5: =+'Post-holder data'!O5 -> 0 | BB5: =+'Post-holder data'!P5 ->  | BC5: =+'Post-holder data'!Q5 -> y | BD5: =ROUND(+BE5+BT5+CE5+CL5,0) -> 5 | BE5: =IF(AV5="y",(+U5+V5)*Weightings!$U$65,IF(AW5="y",Weightings!$V$161,IF(AX5="y",Weightings!$W$161,IF(AY5="y",Weightings!$X$161)))*SUM(BM5:BS5)+U5+V5) -> 0 | BF5: =+IF('Post-holder data'!R5="y",IF(AW5="y",Weightings!$V$164,IF(AX5="y",Weightings!$W$164,IF(AY5="y",Weightings!$X$164))),"N") -> FALSE | BG5: =+IF('Post-holder data'!S5="y",IF(AW5="y",Weightings!$V$166,IF(AX5="y",Weightings!$W$166,IF(AY5="y",Weightings!$X$166))),"N") -> N | BH5: =+IF('Post-holder data'!T5="y",IF(AW5="y",Weightings!$V$168,IF(AX5="y",Weightings!$W$168,IF(AY5="y",Weightings!$X$168))),"N") -> N | BI5: =+IF('Post-holder data'!U5="y",IF(AW5="y",Weightings!$V$170,IF(AX5="y",Weightings!$W$170,IF(AY5="y",Weightings!$X$170))),"N") -> N | BJ5: =+IF('Post-holder data'!V5="y",IF(AW5="y",Weightings!$V$172,IF(AX5="y",Weightings!$W$172,IF(AY5="y",Weightings!$X$172))),"N") -> N | BK5: =+IF('Post-holder data'!W5="y",IF(AW5="y",Weightings!$V$174,IF(AX5="y",Weightings!$W$174,IF(AY5="y",Weightings!$X$174))),"N") -> N | BL5: =+IF('Post-holder data'!X5="y",IF(AW5="y",Weightings!$V$176,IF(AX5="y",Weightings!$W$176,IF(AY5="y",Weightings!$X$176))),"N") -> N | BM5: =+IF('Post-holder data'!Y5="y",IF(AW5="y",Weightings!$V$164,IF(AX5="y",Weightings!$W$164,IF(AY5="y",Weightings!$X$164))),"N") -> FALSE | BN5: =+IF('Post-holder data'!Z5="y",IF(AW5="y",Weightings!$V$166,IF(AX5="y",Weightings!$W$166,IF(AY5="y",Weightings!$X$166))),"N") -> N | BO5: =+IF('Post-holder data'!AA5="y",IF(AW5="y",Weightings!$V$168,IF(AX5="y",Weightings!$W$168,IF(AY5="y",Weightings!$X$168))),"N") -> N | BP5: =+IF('Post-holder data'!AB5="y",IF(AW5="y",Weightings!$V$170,IF(AX5="y",Weightings!$W$170,IF(AY5="y",Weightings!$X$170))),"N") -> N | BQ5: =+IF('Post-holder data'!AC5="y",IF(AW5="y",Weightings!$V$172,IF(AX5="y",Weightings!$W$172,IF(AY5="y",Weightings!$X$172))),"N") -> N | BR5: =+IF('Post-holder data'!AD5="y",IF(AW5="y",Weightings!$V$174,IF(AX5="y",Weightings!$W$174,IF(AY5="y",Weightings!$X$174))),"N") -> N | BS5: =+IF('Post-holder data'!AE5="y",IF(AW5="y",Weightings!$V$176,IF(AX5="y",Weightings!$W$176,IF(AY5="y",Weightings!$X$176))),"N") -> N | BT5: =IF(AV5="y",W5*Weightings!$U$65,IF(AW5="y",Weightings!$V$178,IF(AX5="y",Weightings!$W$178,IF(AY5="y",Weightings!$X$178)))*SUM(BZ5:CD5)+W5) -> 0 | BU5: =+IF('Post-holder data'!AF5="y",IF(AW5="y",Weightings!$V$180,IF(AX5="y",Weightings!$W$180,IF(AY5="y",Weightings!$X$180))),"N") -> FALSE | BV5: =+IF('Post-holder data'!AG5="y",IF(AW5="y",Weightings!$V$182,IF(AX5="y",Weightings!$W$182,IF(AY5="y",Weightings!$X$182))),"N") -> N | BW5: =+IF('Post-holder data'!AH5="y",IF(AW5="y",Weightings!$V$184,IF(AX5="y",Weightings!$W$184,IF(AY5="y",Weightings!$X$184))),"N") -> N | BX5: =+IF('Post-holder data'!AI5="y",IF(AW5="y",Weightings!$V$186,IF(AX5="y",Weightings!$W$186,IF(AY5="y",Weightings!$X$186))),"N") -> N | BY5: =+IF('Post-holder data'!AJ5="y",IF(AW5="y",Weightings!$V$188,IF(AX5="y",Weightings!$W$188,IF(AY5="y",Weightings!$X$188))),"N") -> N | BZ5: =+IF('Post-holder data'!AK5="y",IF(AW5="y",Weightings!$V$180,IF(AX5="y",Weightings!$W$180,IF(AY5="y",Weightings!$X$180))),"N") -> FALSE | CA5: =+IF('Post-holder data'!AL5="y",IF(AW5="y",Weightings!$V$182,IF(AX5="y",Weightings!$W$182,IF(AY5="y",Weightings!$X$182))),"N") -> N | CB5: =+IF('Post-holder data'!AM5="y",IF(AW5="y",Weightings!$V$184,IF(AX5="y",Weightings!$W$184,IF(AY5="y",Weightings!$X$184))),"N") -> N | CC5: =+IF('Post-holder data'!AN5="y",IF(AW5="y",Weightings!$V$186,IF(AX5="y",Weightings!$W$186,IF(AY5="y",Weightings!$X$186))),"N") -> N | CD5: =+IF('Post-holder data'!AO5="y",IF(AW5="y",Weightings!$V$188,IF(AX5="y",Weightings!$W$188,IF(AY5="y",Weightings!$X$188))),"N") -> N | CE5: =IF(AV5="y",SUM(AD5:AI5),SUM(CF5:CK5)+SUM(AD5:AI5)) -> 0 | CF5: =+IF('Post-holder data'!AP5="y",IF(AW5="y",Weightings!$V$194,IF(AX5="y",Weightings!$W$194,IF(AY5="y",Weightings!$X$194))),"N") -> FALSE | CG5: =+IF('Post-holder data'!AQ5="y",IF(AW5="y",Weightings!$V$196,IF(AX5="y",Weightings!$W$196,IF(AY5="y",Weightings!$X$196))),"N") -> N | CH5: =+IF('Post-holder data'!AR5="y",IF(AW5="y",Weightings!$V$198,IF(AX5="y",Weightings!$W$198,IF(AY5="y",Weightings!$X$198))),"N") -> N | CI5: =+IF('Post-holder data'!AS5="y",IF(AW5="y",Weightings!$V$200,IF(AX5="y",Weightings!$W$200,IF(AY5="y",Weightings!$X$200))),"N") -> N | CJ5: =+IF('Post-holder data'!AT5="y",IF(AW5="y",Weightings!$V$202,IF(AX5="y",Weightings!$W$202,IF(AY5="y",Weightings!$X$202))),"N") -> N | CK5: =+IF('Post-holder data'!AU5="y",IF(AW5="y",Weightings!$V$204,IF(AX5="y",Weightings!$W$204,IF(AY5="y",Weightings!$X$204))),"N") -> N | CL5: =(SUM(L5:T5)*AJ5*(1+LARGE(CO5:CP5,1))*IF(AJ5="y",IF(AV5="y",Weightings!$U$121,IF(AW5="y",Weightings!$V$121,IF(AX5="y",Weightings!$W$121,IF(AY5="y",Weightings!$X$121)))),1)+(BE5/IF(AV5="y",Weightings!$U$65,1))*(1+LARGE(CM5:CN5,1))+SUM(Calculations!AK5:AP5))*IF(AV5="y",Weightings!$U$208,IF(AW5="y",Weightings!$V$208,IF(AX5="y",Weightings!$W$208,IF(AY5="y",Weightings!$X$208)))) -> 4.5 | CM5: =IF('Post-holder data'!AV5="y",(IF(AV5="y",Weightings!$U$209,IF(AW5="y",Weightings!$V$209,IF(AX5="y",Weightings!$W$209,IF(AY5="y",Weightings!$X$209))))),0) -> 0 | CN5: =IF('Post-holder data'!AW5="y",(IF(AV5="y",Weightings!$U$211,IF(AW5="y",Weightings!$V$211,IF(AX5="y",Weightings!$W$211,IF(AY5="y",Weightings!$X$211))))),0) -> 0 | CO5: =IF('Post-holder data'!AX5="y",(IF(AV5="y",Weightings!$U$213,IF(AW5="y",Weightings!$V$213,IF(AX5="y",Weightings!$W$213,IF(AY5="y",Weightings!$X$213))))),0) -> 0 | CP5: =IF(AV5="y",Weightings!$U$215,IF('Post-holder data'!AY5="y",(IF(AW5="y",Weightings!$V$215,IF(AX5="y",Weightings!$W$215,IF(AY5="y",Weightings!$X$215)))),0)) -> 1 | CQ5: =ROUND(+CR5+CS5+CX5+DW5+EE5,0) -> 32 | CR5: =IF(AV5="y",+U5+V5+W5,(IF(AW5="y",Weightings!$V$161,IF(AX5="y",Weightings!$W$161,IF(AY5="y",Weightings!$X$161)))*SUM(BF5:BL5))+(IF(AW5="y",Weightings!$V$178,IF(AX5="y",Weightings!$W$178,IF(AY5="y",Weightings!$X$178)))*SUM(BU5:BY5))+U5+V5+W5)*IF(AV5="y",Weightings!$U$223,IF(AW5="y",Weightings!$V$223,IF(AX5="y",Weightings!$W$223,IF(AY5="y",Weightings!$X$223)))) -> 0 | CS5: =SUM($L5:$T5)*(1+(($AU5-1)*IF(AV5="y",Weightings!$U$16,IF(AW5="y",Weightings!$V$16,IF(AX5="y",Weightings!$W$16,IF(AY5="y",Weightings!$X$16))))))*LARGE(E5:I5,1)*$J5*$K5*(1+LARGE(CT5:CW5,1))*IF(AV5="y",Weightings!$U$227,IF(AW5="y",Weightings!$V$227,IF(AX5="y",Weightings!$W$227,IF(AY5="y",Weightings!$X$227)))) -> 16 | CT5: =IF('Post-holder data'!AZ5="y",(IF(AV5="y",Weightings!$U$231,IF(AW5="y",Weightings!$V$231,IF(AX5="y",Weightings!$W$231,IF(AY5="y",Weightings!$X$231))))),0) -> 0 | CU5: =IF('Post-holder data'!BA5="y",(IF(AV5="y",Weightings!$U$233,IF(AW5="y",Weightings!$V$233,IF(AX5="y",Weightings!$W$233,IF(AY5="y",Weightings!$X$233))))),0) -> 0 | CV5: =IF('Post-holder data'!BB5="y",(IF(AV5="y",Weightings!$U$235,IF(AW5="y",Weightings!$V$235,IF(AX5="y",Weightings!$W$235,IF(AY5="y",Weightings!$X$235))))),0) -> 0 | CW5: =IF(AV5="y",Weightings!$U$237,IF('Post-holder data'!BC5="y",(IF(AW5="y",Weightings!$V$237,IF(AX5="y",Weightings!$W$237,IF(AY5="y",Weightings!$X$237)))),0)) -> 1 | CX5: =(SUM(L5:T5)*SUM(E5:I5))+(SUM(CY5:DV5))+IF(SUM(DI5:DP5)>0,Weightings!$S$251,0) -> 8 | CY5: =IF(ISNUMBER('Post-holder data'!BD5*Weightings!$S$267),'Post-holder data'!BD5*Weightings!$S$267,0) -> 0 | CZ5: =IF(ISNUMBER('Post-holder data'!BE5*Weightings!$S$269),'Post-holder data'!BE5*Weightings!$S$269,0) -> 0 | DA5: =IF(ISNUMBER('Post-holder data'!BF5*Weightings!$S$271),'Post-holder data'!BF5*Weightings!$S$271,0) -> 0 | DB5: =IF(ISNUMBER('Post-holder data'!BG5*Weightings!$S$273),'Post-holder data'!BG5*Weightings!$S$273,0) -> 0 | DC5: =IF(ISNUMBER('Post-holder data'!BH5*Weightings!$S$275),'Post-holder data'!BH5*Weightings!$S$275,0) -> 0 | DD5: =IF(ISNUMBER('Post-holder data'!BI5*Weightings!$S$277),'Post-holder data'!BI5*Weightings!$S$277,0) -> 0 | DE5: =IF(ISNUMBER('Post-holder data'!BJ5*Weightings!$T$271),'Post-holder data'!BJ5*Weightings!$T$271,0) -> 0 | DF5: =IF(ISNUMBER('Post-holder data'!BK5*Weightings!$T$273),'Post-holder data'!BK5*Weightings!$T$273,0) -> 0 | DG5: =IF(ISNUMBER('Post-holder data'!BL5*Weightings!$T$275),'Post-holder data'!BL5*Weightings!$T$275,0) -> 0 | DH5: =IF(ISNUMBER('Post-holder data'!BM5*Weightings!$T$277),'Post-holder data'!BM5*Weightings!$T$277,0) -> 0 | DI5: =IF(ISNUMBER('Post-holder data'!BN5*Weightings!$U$251),'Post-holder data'!BN5*Weightings!$U$251,0) -> 0 | DJ5: =IF(ISNUMBER('Post-holder data'!BO5*Weightings!$U$253),'Post-holder data'!BO5*Weightings!$U$253,0) -> 0 | DK5: =IF(ISNUMBER('Post-holder data'!BP5*Weightings!$U$255),'Post-holder data'!BP5*Weightings!$U$255,0) -> 0 | DL5: =IF(ISNUMBER('Post-holder data'!BQ5*Weightings!$U$257),'Post-holder data'!BQ5*Weightings!$U$257,0) -> 0 | DM5: =IF(ISNUMBER('Post-holder data'!BR5*Weightings!$U$259),'Post-holder data'!BR5*Weightings!$U$259,0) -> 0 | DN5: =IF(ISNUMBER('Post-holder data'!BS5*Weightings!$U$261),'Post-holder data'!BS5*Weightings!$U$261,0) -> 0 | DO5: =IF(ISNUMBER('Post-holder data'!BT5*Weightings!$U$263),'Post-holder data'!BT5*Weightings!$U$263,0) -> 0 | DP5: =IF(ISNUMBER('Post-holder data'!BU5*Weightings!$U$265),'Post-holder data'!BU5*Weightings!$U$265,0) -> 0 | DQ5: =IF(ISNUMBER('Post-holder data'!BV5*Weightings!$U$267),'Post-holder data'!BV5*Weightings!$U$267,0) -> 0 | DR5: =IF(ISNUMBER('Post-holder data'!BW5*Weightings!$U$269),'Post-holder data'!BW5*Weightings!$U$269,0) -> 0 | DS5: =IF(ISNUMBER('Post-holder data'!BX5*Weightings!$U$271),'Post-holder data'!BX5*Weightings!$U$271,0) -> 0 | DT5: =IF(ISNUMBER('Post-holder data'!BY5*Weightings!$U$273),'Post-holder data'!BY5*Weightings!$U$273,0) -> 0 | DU5: =IF(ISNUMBER('Post-holder data'!BZ5*Weightings!$U$275),'Post-holder data'!BZ5*Weightings!$U$275,0) -> 0 | DV5: =IF(ISNUMBER('Post-holder data'!CA5*Weightings!$U$277),'Post-holder data'!CA5*Weightings!$U$277,0) -> 0 | DW5: =IF(AV5="y",SUM(L5:T5),(1+SUM(DX5:ED5))*SUM(L5:T5)) -> 8 | DX5: =+IF('Post-holder data'!CB5="y",IF(AW5="y",Weightings!$V$283,IF(AX5="y",Weightings!$W$283,IF(AY5="y",Weightings!$X$283))),0) -> 0 | DY5: =+IF('Post-holder data'!CC5="y",IF(AW5="y",Weightings!$V$285,IF(AX5="y",Weightings!$W$285,IF(AY5="y",Weightings!$X$285))),0) -> 0 | DZ5: =+IF('Post-holder data'!CD5="y",IF(AW5="y",Weightings!$V$287,IF(AX5="y",Weightings!$W$287,IF(AY5="y",Weightings!$X$287))),0) -> 0 | EA5: =+IF('Post-holder data'!CE5="y",IF(AW5="y",Weightings!$V$289,IF(AX5="y",Weightings!$W$289,IF(AY5="y",Weightings!$X$289))),0) -> 0 | EB5: =+IF('Post-holder data'!CF5="y",IF(AW5="y",Weightings!$V$291,IF(AX5="y",Weightings!$W$291,IF(AY5="y",Weightings!$X$291))),0) -> 0 | EC5: =+IF('Post-holder data'!CG5="y",IF(AW5="y",Weightings!$V$294,IF(AX5="y",Weightings!$W$294,IF(AY5="y",Weightings!$X$294))),0) -> 0 | ED5: =+IF('Post-holder data'!CH5="y",IF(AW5="y",Weightings!$V$296,IF(AX5="y",Weightings!$W$296,IF(AY5="y",Weightings!$X$296))),0) -> 0 | EE5: =IF(ISNUMBER(+'Post-holder data'!CI5*IF(AV5="y",Weightings!$U$305,IF(AW5="y",Weightings!$V$305,IF(AX5="y",Weightings!$W$305,IF(AY5="y",Weightings!$X$305))))),+'Post-holder data'!CI5*IF(AV5="y",Weightings!$U$305,IF(AW5="y",Weightings!$V$305,IF(AX5="y",Weightings!$W$305,IF(AY5="y",Weightings!$X$305))))*IF('Post-holder data'!J5="y",35/'Post-holder data'!K5,1),0) -> 0 | EF5: =ROUND(+EG5+EJ5+ES5,0) -> 30 | EG5: =(1+LARGE(EH5:EI5,1))*SUM(Calculations!L5:T5)*SUM(Calculations!E5:I5)*SUM(X5:AB5)*IF(AV5="y",Weightings!$U$316,IF(AW5="y",Weightings!$V$316,IF(AX5="y",Weightings!$W$316,IF(AY5="y",Weightings!$X$316)))) -> 9 | EH5: =IF('Post-holder data'!CJ5="y",IF(AV5="y",Weightings!$U$323,IF(AW5="y",Weightings!$V$323,IF(AX5="y",Weightings!$W$323,IF(AY5="y",Weightings!$X$323)))),0) -> 0 | EI5: =IF(AV5="y",Weightings!$U$325,IF('Post-holder data'!CK5="y",IF(AW5="y",Weightings!$V$325,IF(AX5="y",Weightings!$W$325,IF(AY5="y",Weightings!$X$325))),0)) -> 0.5 | EJ5: =(((1+LARGE(EK5:EM5,1))*SUM(Calculations!L5:T5)*SUM(Calculations!E5:I5))+LARGE(EN5:ER5,1))*SUM(X5:AB5)*IF(AV5="y",Weightings!$U$338,IF(AW5="y",Weightings!$V$338,IF(AX5="y",Weightings!$W$338,IF(AY5="y",Weightings!$X$338)))) -> 9 | EK5: =IF('Post-holder data'!CL5="y",IF(AV5="y",Weightings!$U$344,IF(AW5="y",Weightings!$V$344,IF(AX5="y",Weightings!$W$344,IF(AY5="y",Weightings!$X$344)))),0) -> 0 | EL5: =IF('Post-holder data'!CM5="y",IF(AV5="y",Weightings!$U$346,IF(AW5="y",Weightings!$V$346,IF(AX5="y",Weightings!$W$346,IF(AY5="y",Weightings!$X$346)))),0) -> 0 | EM5: =IF(AV5="y",Weightings!$U$348,IF('Post-holder data'!CN5="y",IF(AW5="y",Weightings!$V$348,IF(AX5="y",Weightings!$W$348,IF(AY5="y",Weightings!$X$348))),0)) -> 0.5 | EN5: =IF('Post-holder data'!CO5="y",IF(AV5="y",Weightings!$U$361,IF(AW5="y",Weightings!$V$361,IF(AX5="y",Weightings!$W$361,IF(AY5="y",Weightings!$X$361)))),0) -> 0 | EO5: =IF('Post-holder data'!CP5="y",IF(AV5="y",Weightings!$U$363,IF(AW5="y",Weightings!$V$363,IF(AX5="y",Weightings!$W$363,IF(AY5="y",Weightings!$X$363)))),0) -> 0 | EP5: =IF('Post-holder data'!CQ5="y",IF(AV5="y",Weightings!$U$365,IF(AW5="y",Weightings!$V$365,IF(AX5="y",Weightings!$W$365,IF(AY5="y",Weightings!$X$365)))),0) -> 0 | EQ5: =IF('Post-holder data'!CR5="y",IF(AV5="y",Weightings!$U$367,IF(AW5="y",Weightings!$V$367,IF(AX5="y",Weightings!$W$367,IF(AY5="y",Weightings!$X$367)))),0) -> 0 | ER5: =IF('Post-holder data'!CS5="y",IF(AV5="y",Weightings!$U$369,IF(AW5="y",Weightings!$V$369,IF(AX5="y",Weightings!$W$369,IF(AY5="y",Weightings!$X$369)))),0) -> 0 | ES5: =(1+LARGE(ET5:EV5,1))*SUM(Calculations!L5:T5)*SUM(Calculations!E5:I5)*IF(AV5="y",Weightings!$U$373,IF(AW5="y",Weightings!$V$373,IF(AX5="y",Weightings!$W$373,IF(AY5="y",Weightings!$X$373)))) -> 12 | ET5: =IF('Post-holder data'!CT5="y",IF(AV5="y",Weightings!$U$377,IF(AW5="y",Weightings!$V$377,IF(AX5="y",Weightings!$W$377,IF(AY5="y",Weightings!$X$377)))),0) -> 0 | EU5: =IF('Post-holder data'!CU5="y",IF(AV5="y",Weightings!$U$379,IF(AW5="y",Weightings!$V$379,IF(AX5="y",Weightings!$W$379,IF(AY5="y",Weightings!$X$379)))),0) -> 0 | EV5: =IF(AV5="y",Weightings!$U$381,IF('Post-holder data'!CV5="y",IF(AW5="y",Weightings!$V$381,IF(AX5="y",Weightings!$W$381,IF(AY5="y",Weightings!$X$381))),0)) -> 0.5 | EW5: =ROUND(+EX5+FA5+FD5,0) -> 33 | EX5: =(1+LARGE(EY5:EZ5,1))*SUM(Calculations!L5:T5)*SUM(Calculations!E5:I5)*IF(AV5="y",Weightings!$U$399,IF(AW5="y",Weightings!$V$399,IF(AX5="y",Weightings!$W$399,IF(AY5="y",Weightings!$X$399)))) -> 12 | EY5: =IF('Post-holder data'!CW5="y",IF(AV5="y",Weightings!$U$406,IF(AW5="y",Weightings!$V$406,IF(AX5="y",Weightings!$W$406,IF(AY5="y",Weightings!$X$406)))),0) -> 0 | EZ5: =IF(AV5="y",Weightings!$U$408,IF('Post-holder data'!CX5="y",IF(AW5="y",Weightings!$V$408,IF(AX5="y",Weightings!$W$408,IF(AY5="y",Weightings!$X$408))),0)) -> 0.5 | FA5: =(1+LARGE(FB5:FC5,1))*SUM(Calculations!L5:T5)*SUM(Calculations!E5:I5)*IF(AV5="y",Weightings!$U$419,IF(AW5="y",Weightings!$V$419,IF(AX5="y",Weightings!$W$419,IF(AY5="y",Weightings!$X$419)))) -> 12 | FB5: =IF('Post-holder data'!CY5="y",IF(AV5="y",Weightings!$U$424,IF(AW5="y",Weightings!$V$424,IF(AX5="y",Weightings!$W$424,IF(AY5="y",Weightings!$X$424)))),0) -> 0 | FC5: =IF(AV5="y",Weightings!$U$426,IF('Post-holder data'!CZ5="y",IF(AW5="y",Weightings!$V$426,IF(AX5="y",Weightings!$W$426,IF(AY5="y",Weightings!$X$426))),0)) -> 0.5 | FD5: =(1+LARGE(FE5:FG5,1))*SUM(Calculations!L5:T5)*SUM(Calculations!E5:I5)*SUM(X5:AB5)*IF(AV5="y",Weightings!$U$437,IF(AW5="y",Weightings!$V$437,IF(AX5="y",Weightings!$W$437,IF(AY5="y",Weightings!$X$437)))) -> 9 | FE5: =IF('Post-holder data'!DA5="y",IF(AV5="y",Weightings!$U$443,IF(AW5="y",Weightings!$V$443,IF(AX5="y",Weightings!$W$443,IF(AY5="y",Weightings!$X$443)))),0) -> 0 | FF5: =IF(AV5="y",Weightings!$U$445,IF('Post-holder data'!DB5="y",IF(AW5="y",Weightings!$V$445,IF(AX5="y",Weightings!$W$445,IF(AY5="y",Weightings!$X$445))),0)) -> 0.5 | FG5: =IF('Post-holder data'!DC5="y",IF(AV5="y",Weightings!$U$447,IF(AW5="y",Weightings!$V$447,IF(AX5="y",Weightings!$W$447,IF(AY5="y",Weightings!$X$447)))),0) -> 0 | FH5: =+EW5+EF5+CQ5+BD5 -> 100 | FI5: =IF(ISNUMBER(E5),"P",IF(ISNUMBER(F5),"S",IF(ISNUMBER(G5),"Sp",IF(ISNUMBER(H5),"JHS",IF(ISNUMBER(I5),"O"))))) -> P | FJ5: =IF(AV5="Y","HT",IF(AW5="Y","Formal Depute",IF(AX5="y","Other SMT",IF(AY5="y","PT")))) -> HT | FK5: =IF(ISNUMBER(L5),"Up to 50",IF(ISNUMBER(M5),"51 to 100",IF(ISNUMBER(N5),"101 to 250",IF(ISNUMBER(O5),"251 to 500",IF(ISNUMBER(P5),"501 to 750",IF(ISNUMBER(Q5),"751 to 1000",IF(ISNUMBER(R5),"1001 to 1250",+FN5))))))) -> Up to 50 | FL5: =IF('Post-holder data'!G5="Y",VLOOKUP(FH5,'Allocation to scales'!C38:F45,4),VLOOKUP(FH5,'Allocation to scales'!C10:F28,4)) -> 35500 | FM5: =IF('Post-holder data'!G5="Y","PT "&VLOOKUP(FH5,'Allocation to scales'!C38:F45,3),"HT/DHT "&VLOOKUP(FH5,'Allocation to scales'!C10:F28,3)) -> HT/DHT 1 | FN5: =IF(ISNUMBER(S5),"1250 to 1500","Over1500") -> Over1500

Sheet Section 1
B1: Local authority | E1: =+Calculations!A5 -> 0 | F1: Job size
B2: Coordinators | E2: =CONCATENATE(+G17," , ",G18) -> , | F2: 2. Leadership and good management | J2: =+Calculations!BD5 -> 5
B3: School | E3: =+G20 -> 0 | F3: 3. Curriculum development and quality assurance | J3: =+Calculations!CQ5 -> 32
B4: Type of post | E4: =+Calculations!FJ5 -> HT | F4: 4. Whole school policy and implementation | J4: =+Calculations!EF5 -> 30
B5: Name of post | E5: =+F57 -> 0 | F5: 5. Working with partners | J5: =+Calculations!EW5 -> 33
B6: Post holder | E6: =+F59 -> 0 | F6: Total | J6: =+Calculations!FH5 -> 100
B7: Reference | E7: =+G70 -> 0
B8: Date | E8: =NOW() -> 2026-04-01T17:01:00.250 | F8: Salary point | J8: =+Calculations!FM5 -> HT/DHT 1
B9: =IF(ISTEXT(G146),"You have entered text, please enter a number","") -> 
C11: SECTION 1: WHOLE SCHOOL INFORMATION
C13: Questions 1.1. to 1.7 should be completed for all posts.
C15: 1.1 Name of Council
C17: 1.2 Names of Job Sizing Co-ordinators | K17: Management
K18: Teacher Union
C20: 1.3 Name(s) of school(s)/Service
C23: 1.4 Type of Post
D24: ● Please indicate which applies.
E27: Headteacher (HT)
E29: Depute Headteacher (DHT)
E30: =IF('Post-holder data'!F5="y",IF(OR('Post-holder data'!L5="y",'Post-holder data'!M5="y"),"","Please also tick for being an SMT member or formal depute"),"") -> 
E31: Principal Teacher (PT)
D34: ● Please tick any box which applies and provide information where requested.
E37: The responsibility of the post relate to more than one school
E39: Enter the number of schools | I39: =IF(ISTEXT(H39),"You have entered text, please enter a number","") -> 
E41: The post is a part time post
E43: Enter the number of contracted hours per week | I43: =IF(ISTEXT(H43),"You have entered text, please enter a number","") -> 
E44: (35 hours equals full time)
D46: ● Please tick any box which applies and provide information where requested.
E48: The post is an established part of the Senior Leadership Team (SLT)
E50: The post is the only post with responsibility for formal deputising for the HT (i.e. sole DHT)
E52: The post is part of an SLT that does not include a formal depute
E54: If the SLT does not include a formal depute, enter the number of established SLT
E55: posts in the school (excluding the HT)
C57: 1.5 Title of Post
C59: 1.6 Name of post holder
C60: (Resizing applications only)
C62: 1.7 Gender of post holder | F62: Male | H62: Female
C63: (Rezing applications only)
C65: Questions 1.8 to 1.14 will be completed by the job sizing co-ordinators. Post holders must not complete these questions.
C70: 1.8 Payroll Reference/Post Number (If required)
C72: 1.9 Type of establishment
D73: ● Please indicate the type of establishment in which the post is located. If other is indicated, give details.
E75: Primary
E77: Secondary | F77: =IF(G78>1,"Please only tick one type of school","") -> 
E79: Special
E81: ECC
E83: Other (give details)
D88: ● Please tick to indicate if the school includes either/both of the following.
E90: Early Education and Childcare unit or classes (except in an Early Education and Childcare Establishment)
E92: Additional Support for Learning (ASL) unit or classes (except in an ASL School/Establishment)
C94: 1.10 School Roll (taken from the most recently published Scottish Government census data)
D95: ● Please indicate the school roll.
E97: Up to 50
E99: 51 to 100
E101: 101 to 250
E103: 251 to 500
E105: 501 to 750
E107: 751 to 1,000
E109: 1,001 to 1,250
E111: 1,251 to 1,500
E113: Over 1,500
D116: ● Enter actual school roll
C118: 1.11 Numbers of staff
D119: ● Please state the authorised (CORE) Full Time Equivalent of staff in each category. (Temporarily funded staff should be excluded)
D121: Promoted teaching staff | H121: =IF(ISTEXT(F121),"You have entered text, please enter a number","") -> 
D123: Other teaching staff | H123: =IF(ISTEXT(F123),"You have entered text, please enter a number","") -> 
D125: Other staff | H125: =IF(ISTEXT(F125),"You have entered text, please enter a number","") -> 
C128: 1.12 Percentage of children registered for School Clothing Grant
D129: ● Please indicate the percentage of children registered.
E131: 0% to 10%
E133: 11% to 25%
E135: 26% to 50%
E137: 51% to 75%
E139: 76% to 100%
D142: ● Enter actual percentage | H142: %
C144: 1.13 Size of school budget
D146: Please state the size of the total | F146: £ | J146: =IF(ISTEXT(G146),"You have entered text, please enter a number","") -> 
D147: budget for the school
D149: ● Please tick to indicate the actual budget for which the HT is responsible, excluding permanent staff costs, amounts related to property management,
D150: and any budget that is temporary in nature.This claim will align with the budget allocated in accordance with the provisions of the Council’s published DSM document.
E153: None
E155: Up to £100,000
E157: £100,001 to £250,000
E159: £250,001 to £500,000
E161: £500,001 to £750,000
E163: Over £750,000
D166: ● Enter actual amount £
C168: 1.14 Physical nature of the school
D170: ● Please tick to indicate the number of pupils for whom dedicated transport is provided for which the school has responsibility.
E174: Up to 100
E176: 101 to 200
E178: 201 to 300
E180: 301 to 400
E182: 401 to 500
E184: Over 500
D187: ● Enter actual number of pupils
D189: ● Please tick this box if the school is a multi-site school
C192: SECTION 2: RESPONSIBILITY FOR THE LEADERSHIP, GOOD MANAGEMENT AND STRATEGIC DIRECTION
C193: OF COLLEAGUES
C195: Questions 2.1 to 2.3 should be completed for DHT and PT posts only.
C197: 2.1 Direct line management responsibility for CORE teaching staff. Staff that are funded from an external funding source are to be excluded due to the temporary nature of the funding
D199: ● Indicate in the left column the total number of teaching staff for
D200: which the post has line management responsibility.
D202: ● Indicate in the right column the total FTE of staff to reflect any part time staff
D203: or those staff who are line managed by the post on a pro rata basis.
E205: Total Number of | G205: FTE
E206: Teaching Staff
E208: None | G208: None
E210: 1 | G210: 1
E212: 2 to 5 | G212: 2 to 5
E214: 6 to 10 | G214: 6 to 10
E216: 11 to 25 | G216: 11 to 25
E218: 26 to 50 | G218: 26 to 50
E220: Over 50 | G220: Over 50
F223: ● Enter number of staff and FTE
D224: DETAILS:
C232: 2.2 Direct line management responsibility for other CORE staff. Staff that are funded from an external funding source are to be excluded due to the temporary nature of the funding.
D234: ● Indicate in the left column the total number of support staff for which
D235: the post has line management responsibility.
D237: ● Indicate in the right column the total FTE to reflect any part time staff
D238: or those staff who are line managed on a pro rata basis.
E240: Total Number of Staff | G240: FTE
E242: None | G242: None
E244: 1 | G244: 1
E246: 2 to 10 | G246: 2 to 10
E248: 11 to 25 | G248: 11 to 25
E250: Over 25 | G250: Over 25
F253: ● Enter number of staff and FTE
D254: DETAILS:
C262: 2.3 Accountability for budgets
D264: ● Indicate the amount of regular annual budget for which the post is accountable.
E266: None
E268: Up to £1,000
E270: £1,001 to £5,000
E272: £5,001 to £10,000
E274: £10,001 to £25,000
E276: Over £25,000
E279: ● Enter actual budget £
C281: 2.4 Responsibility for health and safety, and health and wellbeing
D283: This question applies to all posts. HTs may tick the 4th box but only where
D284: the HT post has responsibility as the school's Health and Safety Officer.
D286: ● Tick the relevant box below for the curricular area or category for
D287: which the post has overall health and safety responsibility:
E290: Direct curricular responsibility for Craft, Design and Technology; Physical Education (including outdoor activities); Chemistry; Physics; Biology; Home Economics; Art and Design or Music/Music Technology
E293: Other direct curricular responsibilities
E295: Year groups and / or specialist sections of the school or whole school responsibility for health & wellbeing
E297: The whole school (i.e. school's Health and Safety Officer or equivalent)
D300: DETAILS:
C308: SECTION 3: RESPONSIBILITY FOR CURRICULUM DEVELOPMENT AND QUALITY ASSURANCE
C311: 3.1 To review the Career Long Professional Learning (CLPL) needs, career development and performance of colleagues.
D313: A score is automatically awarded for this responsibility based on the entries made in questions 2.1 and 2.2. There is no need to enter any further data.
C316: 3.2 To produce and implement the school improvement plan and responsibility for whole school policies.
D318: This question should be completed for DHT and PT posts only.
D320: ● Please tick as many boxes as apply and add details in the text box below.
E323: Responsible for producing and leading some or all of a curricular, departmental, subject or faculty improvement plan each year
E326: Responsible for producing and leading some or all of an improvement plan relating to pupil guidance, pupil support or pupil welfare each year
E329: Responsible for producing and leading some or all of an improvement plan relating to specified stages, year groups, other specified groups of pupils, or other specific responsibilities each year
E332: Responsible for producing and leading the whole-school improvement plan, and/or sole responsibility for specified whole school policies each year, whether or not under review in the improvement plan
D336: DETAILS:
C343: 3.3 To develop the curriculum and monitor learning and teaching
D345: This question applies to all posts.
D347: No details of curricular areas or national qualifications are required for Early Education and Childcare and Primary sectors.
D348: Note: The total number of classes entered across all promoted post holders in a school must not exceed the agreed classification for the school.
D349: the number of classes in the school.
D351: ● Please enter number of classes:
E353: Stage or Year Group | F353: Number of Timetabled Classes
E354: EEC | I354: =IF(ISTEXT($F354),"You have entered text, please enter a number","") -> 
E355: P1
E356: P2
E357: P3
E358: P4
E359: P5
E360: P6
E361: P7
D363: ● Please enter numbers and text below as required:
D365: Note: In relation to National Qualifications, only national courses (collections of units)
D366: Individual units do not. Each level should be counted only once and placed against the
D367: year group with the biggest presentation.
D369: Names of Subjects | F369: Number of Subjects | G369: Level of National Qualification (NQ) | I369: Number of NQs | J369: Number of Timetabled Classes
C374: S1 | G374: BGE | K374: =IF(OR(ISTEXT(I374),ISTEXT(J374),ISTEXT(F374)),"You have entered text, please enter a number","") -> 
C377: S2 | K377: =IF(OR(ISTEXT(I377),ISTEXT(J377),ISTEXT(F377)),"You have entered text, please enter a number","") -> 
C380: S3 | K380: =IF(OR(ISTEXT(I380),ISTEXT(J380),ISTEXT(F380)),"You have entered text, please enter a number","") -> 
C383: S4 | K383: =IF(OR(ISTEXT(I383),ISTEXT(J383),ISTEXT(F383)),"You have entered text, please enter a number","") -> 
C386: S5 | K386: =IF(OR(ISTEXT(I386),ISTEXT(J386),ISTEXT(F386)),"You have entered text, please enter a number","") -> 
C389: S6 | K389: =IF(OR(ISTEXT(I389),ISTEXT(J389),ISTEXT(F389)),"You have entered text, please enter a number","") -> 
C393: 3.4 Other formal management responsibilities
D395: This question should be completed for DHT and PT posts only
D397: ● Please tick to indicate the specific responsibilities of this post and add details in the text box below.
E400: Responsible for the whole school timetable in a Secondary school
E402: Responsible for whole school digital learning and innovation to enhance learning & teaching
E404: Responsible for Early Education and Childcare classes in a Primary school
E406: Responsible for learning support or relationship/behavioural support
E408: Responsible for an ASL unit, hub, class or group for which no other promoted postholder is
E409: responsible
E411: Responsible for a guidance caseload and shared whole school responsibility associated with
E412: being a PT Guidance/Pupil Support
E414: Head of the Primary section of a combined school
D417: DETAILS:
C423: 3.5 Timetabled teaching time
D424: This question applies to all posts.
... 64 more rows

Sheet Sheet1
A1: NOTES OF GUIDANCE
A2: SECTION 1. WHOLE SCHOOL INFORMATION
A3: The questions in this section of the questionnaire apply to all posts.
A4: 1.1 Council
A5: Enter the name of the council in which the post is held.
A6: 1.2 Names of Job Sizing Co-ordinators
A7: Enter the names of the Job Sizing Co-ordinators responsible for validating and processing the data relating to the post. Job Sizing Co-ordinators are selected from both management and teacher unions and work together, within locally agreed arrangements, to ensure the process is both efficient and fair.
A10: 1.3 Name of School(s)/Service
A11: Enter the name(s) of the school(s) or Service (eg Sensory Support Service) in which the post is based.
A12: 1.4 Type of post
A13: Tick the box to indicate the type of post, ie Headteacher (HT), Depute Headteacher (DHT) or Principal Teacher (PT).
A14: Tick the box if the post relates to responsibilities in more than one school, and enter the number of schools.
A15: Throughout these notes the title PT Guidance/Pupil Support refers to a PT post in secondary with a pastoral/guidance caseload of pupils.
A17: Examples:
A18: A HT who is head of two schools would tick the box and enter 2against the number of schools.
A19: A PT who is responsible for Additional Support for Learning (ASfL) services across a group of six schools would tick the box and enter 6against the number of schools. Please note that the third box of Q5.3 ("Responsible for remits that require applying promoted responsibilities in other establishments or agencies") should not be ticked for such a post as Q1.4 captures the responsibility for multiple schools.
A23: Tick the box if this is a part time post, and enter the number of hours per week the post holder is contracted to work.
A24: A post which is job shared should be treated as a single, full time post.
A25: Tick the 1st box if the responsibilities of the post include being a member of the Senior Management Team (SMT). PT post holders should not tick that they are members of the SMT. However, for resizing purposes only, a PT may tick this box if he/she had done so in the previous job sizing questionnaire for this post and if he/she remains part of the SMT.
A28: Tick the 2nd box if the responsibilities include being the only member of the SMT who formally deputises for the HT.
A29: Tick the 3rd box if the SMT does not include a formal depute and in the 4th box enter the number of SMT posts who share the task of deputising.
A31: Primary Example:
A32: In a school where there is only one DHT post, tick the 1st box indicating that the post holder is a member of the SMT and the 2nd, indicating that he/she is the only member of the SMT who formally deputises for the HT.
A34: Secondary Examples:
A35: In a school where there are three DHT posts, one of whom is solely responsible for deputising for the HT, all three should tick the 1st box, and the DHT with deputising responsibility should tick the 2nd. No-one should tick the 3rd box or make an entry in the 4th box.
A38: In a school where there are four DHT posts which share responsibility for deputising for the HT, all should tick the 1st box, none should tick the 2nd box, and all should tick the third box and enter 4 in the 4th box to indicate the number of SMT members in the school, excluding the HT.
A41: 1.5 Title of post
A42: Enter the title by which the post is known.
A43: Primary Example:
A44: In a large school where PTs have responsibilities at different stages, the post may be known as "Principal Teacher, Early Years".
A45: Secondary Examples:
A46: In a school where traditional subject posts exist, the post may be known as "Principal Teacher of Mathematics".
A47: In a school where PTs are responsible for groups of subjects, a post may be known as "Faculty Head - Science" or similar title.
A48: A Principal Teacher with responsibility for the management of the pastoral care of pupils, the post may be known as "Principal Teacher - Pastoral" or "Principal Teacher of Guidance" or "Principal Teacher Guidance/Pupil Support".
A50: 1.6 Name of post holder
A51: Enter the name of the post holder in the case of a resizing application. If the post is vacant, enter Vacancy.
A52: 1.7 Gender of post holder
A53: Tick the box to indicate the gender of the post holder in the case of a resizing application.
A54: Questions 1.8 to 1.14 must be completed by the job sizing co-ordinators. Post holders must not complete these questions.
A56: 1.8 Payroll Reference Number
A57: Any reference required by the council when processing the results will be entered by the Job Sizing Co-ordinators.
A58: 1.9 Type of Establishment
A59: Tick the box to indicate the type of school in which the post is located. If the post is in an "other" type of school, describe this in the box provided.
A61: If the post is in a school where there are pupils from 3 - 18, enter the description which is generally used for the establishment.
A62: If the post is in a school (other than a Nursery School) which has a Nursery Unit or classes or in a school (other than a Special School) which has an ASfL unit or classes, tick the appropriate box(es).
A64: Primary Example:
A65: If a Primary school has Nursery class(es), the 1st box should be ticked. If that school also has an ASfL unit, both boxes should be ticked.
A67: 1.10 School Roll
A68: Tick the box to show the range into which the number of pupils on the roll falls using the most recent census data submitted. If the post is vacant and the circumstances in the school will have changed when the appointee takes up post (eg school amalgamations, new nursery classes) the best available estimate should be used. The actual number of nursery pupils rather than the full time equivalent should be used and the number used should be representative of the number of pupils in the nursery throughout the year. For example, a nursery with a morning class of 50 and an afternoon class of 50, 100 should be taken as the representative head count even if the nursery is not operating at fully 50/50 at all times throughout the year.
A73: The actual school roll should be entered in the box provided. This entry is for reference purposes only.
A74: 1.11 Numbers of Staff
A75: Enter the number of staff that make up the authorised staffing allocation for the school on a Full Time Equivalent (FTE) basis. The FTE for teachers is based on a 35 hour week.
A77: In the 1st box, enter the total FTE of HT, DHT and PT post holders in the school.
A78: In the 2nd box, enter the FTE of all other teachers who are managed within the school. Councils should also take due account of their own line management arrangements for teachers who work across schools, eg learning support teams. This could involve sharing the responsibility between the HT and a central line manager.
A81: In the 3rd box, enter the FTE of all staff other than teachers who work in the school and who are directly line managed within the school. FTEs should be calculated based on the number of hours per week that an equivalent full time post would normally be contracted to work. Councils should also take due account of their own line management arrangements for staff who work across schools.
A85: This would normally include office staff, janitors, classroom assistants, early years officers/nursery nurses, auxiliaries etc, who are managed within the school. It would exclude facilities staff or other staff not employed by the Council department responsible for the school or managed by outside agencies, for example, catering and cleaning staff.
A88: 1.12 Percentage of children registered for free school meals
A89: Tick the box which indicates the percentage of children registered for free school meals at the most recent date on which this calculation was made.
A91: Where there is universal provision of free school meals for P1 to P3 the percentage registered for P4 to P7 should be used.
A92: The actual percentage should be entered in the box provided. This entry is for reference purposes only.
A93: 1.13 Size of school budget
A94: Enter the total budget for the school.
A95: Tick the box which indicates the range into which the total budget for which the HT is accountable falls, taking into account the following parameters:
A97: The following should be excluded:
A98: ●Salary costs and other employee costs (eg superannuation and national insurance) relating to permanent staff, and staff on fixed term contracts of more than 1 year
A100: ●Costs relating to building maintenance work, including repairs, decoration and improvements, unless devolved
A101: ●Budgets for capital expenditure
A102: ●Special funding from the Scottish Government/Executive or other sources
A103: ●Monies collected from parents
A104: The actual budget for which the HT is accountable for should be entered in the box provided. This entry is for reference purposes only.
A106: 1.14 The physical nature of the school
A107: Tick the box to indicate the number of pupils for whom transport is provided to school. This should include all pupils with a transport entitlement for which the school has responsibility for health and safety.
A109: The actual number of pupils should be entered in the box provided. This entry is for reference purposes only.
A110: Tick the next box if the school has classrooms on more than one site; a school is on more than one site if it is necessary to leave school premises to move from one site to another. The box should only be ticked if the HT is responsible for more than one site. Schools that have sports facilities or other specialist facilities on different sites should not be treated as multi-site schools for this purpose.
A113: SECTION 2: RESPONSIBILITY FOR THE LEADERSHIP, GOOD MANAGEMENT
A114: AND STRATEGIC DIRECTION OF COLLEAGUES
A115: Throughout this section HTs receive an automatic score based on the whole school data. All questions in this section should be completed for DHT and PT posts. For HT posts only question 2.4 may be completed.
A117: 2.1 Direct line management responsibility for teaching staff
A118: Please include all teaching staff for whom the post has direct line management responsibility. Line management responsibility means overall responsibility for the work carried out by staff, which may include performance, absence monitoring, discipline, PRD, CPD etc. This does not include management that is limited to supervision of staff in the classroom, or contributing to CPD needs, without having overall responsibility for staff.
A122: Where the line management of staff is shared with another promoted post then the number of staff line managed by the post holder, on a pro rata basis (FTE), should be included. Double counting of staff must be avoided.
A124: Part time staff should be calculated based on the number of hours per week that an equivalent full time post would normally be contracted to work (35 hours for teachers) and entered as a proportion of this time. The same applies to staff who are also line managed by more than one promoted post holder.
A127: If the FTE figure falls between the bands, round up to the nearest whole number.
A128: If you do not have any direct line management responsibility for teaching staff then you should enter a tick in the 'none' box in both columns.
A130: Probationers should be counted as full time teaching staff, ie 1.0 FTE.
A131: Visiting music instructors should be included as 'other staff' in question 2.2 below, even though some may possibly be qualified teachers.
A133: Tick the relevant box in the 1st column for the total number of staff, and then tick a box in the 2nd column for actual FTE in order to reflect any part time staff or those staff who are line managed on a pro rata basis.
A135: The actual FTE should be entered in the box provided. This entry is for reference purposes only.
A136: Primary Example:
A137: A DHT has responsibility for the infant department where there are 4 classes, 2 of which have job share teachers. Under "Total Number of Teaching Staff" the 6 to 10 box should be ticked (4 job sharers and 2 full time staff) and under "FTE" the 2 to 5 box (4 FTE) should be ticked.
A140: Secondary Examples:
A141: A science teacher working half the time in the Biology department and half the time in the Chemistry department would be taken as 0.5 FTE by both the PT of Biology and the PT of Chemistry. This is assuming the PTs have overall responsibility for the work carried out by the teacher, which may include performance, absence monitoring, discipline, PRD, CPD etc, when the teacher is working for their department.
A145: If a DHT were responsible for 4 PTs, each of whom is responsible for 3 classroom teachers, the total number of staff for whom the DHT has direct line management responsibility would be 4. Each PT would have direct line management responsibility for 3 staff.
A147: If a curricular PT has a PT Guidance/Pupil Support working 0.4 FTE in the department as a class teacher and the PT Guidance/Pupil Support also does 0.6 FTE in the Guidance role under the leadership of a DHT, the Department PT would line manage that person for 0.4 FTE and the DHT would line manage that person 0.6 FTE. This is assuming that the DHT and PT have overall responsibility for the work carried out by the PT Guidance/Pupil Support when working for each department.
A151: 2.2 To manage other staff
A152: As for 2.1 above but with respect to support staff for which the post holder has direct line management responsibility. 'Other staff' includes all support staff, for example, pupil support assistants, classroom assistants, auxiliaries, janitors, clerical/administrative staff, etc. Only those staff who are line managed by a promoted post holder in the school and are employed by the council service running the school should be counted.
A156: FTE of support assistants (and other school support staff) should be calculated based on the number of hours per week that an equivalent full time post would normally be contracted to work and entered as a proportion of this time.
A158: Management of learning support staff or classroom assistants or pupil support assistants when they are working in the classroom should not be counted as ‘line management’ unless there is overall responsibility for managing them.
A160: Posts such as music instructors, technicians and librarians, may be managed partly by a promoted post holder within a school and partly by a centrally-based manager or co-ordinator. Job sizing co-ordinators should be informed of how this sharing operates and the percentages or decimal fractions to be allocated to post holders for this responsibility. Within some councils such arrangements may have been agreed within the LNCT. Where this is not the case the LNCT must be notified of the arrangements for shared management.
A164: Only when the total FTE figure falls between the bands, should the FTE be rounded up to the nearest whole number.
A165: Tick the relevant box in the 1st column for the total number of other staff, and then tick a box in the 2nd column for actual FTE in order to reflect any part time staff or those staff who are line managed on a pro-rata basis.
A167: The actual FTE should be entered in the box provided. This entry is for reference purposes only.
A168: Note: All examples are dependent on arrangements existing in councils.
A169: Primary Examples:
A170: A DHT in a Primary school has responsibility for 1 violin instructor and 2 guitar instructors working in the school for 7 hours each per week, total number of hours is 21/0.6 FTE. This figure may be allocated proportionately. For example, if a person from the council has 60% line management responsibility for Music Instructors then 40% of the FTE of the time worked in the school may be allocated to the DHT. Therefore, under "Total Number of Staff" column, the 2 to 10 box should be ticked (3 people) and under "FTE" the 2nd box should be ticked (0.6 FTE @ 40% = 0.24 FTE, rounded up to the nearest whole number = 1). This example may also apply in the Secondary sector.
A175: A PT has responsibility for 1 Clerical Assistant (35 hours) and 5 Support Assistants (25 hours/0.71 FTE each). Under "Total Number of Staff" the 2 to 10 box should be ticked (6 staff) and under "FTE" the 2 to 10 box (4.55 FTE).
A177: Secondary Examples:
A178: PT Science has 3 Technicians working in the department. The PT shares the responsibility for line management of them with a council manager on a basis of 40% managed by the PT Science and 60% managed by the council manager. Therefore, under the "Total Number of Staff” column the 2 to 10 box should be ticked (3 people) and under “FTE” the 2 to 10 box should be ticked (3 FTE @ 40% = 1.2 FTE, which is rounded up to 2 FTE as it falls between bandings). Where a council manager has full line management responsibility for Technicians, the ‘None’ box should be ticked.
A182: A PT Pupil Guidance/Pupil Support has responsibility for 7 Support Assistants (25 hours/0.71 FTE each). Under "Total Number of Staff" the 2 to 10 box should be ticked (7 staff) and under "FTE" the 2 to 10 box (4.97 FTE) should be ticked.
A184: A DHT is responsible for 2 Music Instructors with a combined FTE of 0.4 in the school, and also for a full time Clerical Assistant working 35 hours (1.0 FTE). There are 3 members of staff so under the "Total Number of Staff" column the 2 to 10 box should be ticked. The FTE of the 3 staff is 1.4. This falls between the 1 option and the 2 to 10 option. Under "FTE" the 2 to 10 box should be ticked. Rounding up only applies if the total FTE that is calculated falls between options or bandings.
A188: Note: All FTEs in examples are based on a 35 hour week.
A189: 2.3 Accountability for budgets
A190: Tick the relevant box for the amount of regular annual budget for which the post is accountable.
A191: HTs are accountable for the whole school budget and the HT may delegate parts of this budget to other promoted post holders. It is not possible for more than one other promoted post holder to be responsible for the same monies.
A193: Budgets for capital expenditure or special one-off funding from the Scottish Government or other sources should not be included. Monies collected from parents and other special funding arrangements should also be excluded.
A195: The actual budget should be entered in the box provided. This entry is for reference purposes only.
A196: Primary Example:
A197: The HT may delegate some budget to DHT or PT post holders, eg for the year groups / curricular areas that they manage. In a small school, the DHT may be given responsibility for some or all subject-related budgets.
A199: Secondary Example:
A200: The HT may delegate some budget to a DHT, eg for ICT or CPD. The HT may also delegate some budget to PTs to make them accountable for the budgets for their respective departments / subjects.
A202: 2.4 Responsibility for health and safety
A203: All promoted post holders have responsibility for health and safety and a base score has already been awarded for this from the information provided in Section 1.
A205: Tick the 1st box if the post has direct curricular responsibility for any of the subjects listed. This will most likely be the subject PT post, but it could be a DHT post in a smaller school or PT post in a Primary school. This box cannot be ticked for a HT post.
A207: Tick the 2nd box if the post has other direct curricular responsibilities for health and safety, ie PT posts for subjects not listed at the 1st box. PT posts with whole school responsibility for a subject will tick one of the first two boxes. This box cannot be ticked for a HT post.
A210: Tick the 3rd box if the post has health and safety responsibilities for year groups and / or specialist sections of the school. This box cannot be ticked for a HT post.
A212: Tick the 4th box if the post has overall responsibility for health and safety for the whole school. If the HT post has responsibility as the school's Health & Safety Officer, and this responsibility has not been delegated to another promoted post, then this box should be ticked. This is the only box that can be ticked for HT posts. This box can only apply to one promoted post in the school.
A215: Primary Examples:
A216: A DHT / PT in a Primary school with curricular responsibility for environmental studies would have direct curricular responsibility for health and safety for that subject and would enter a tick in the 2nd box.
A218: A DHT or PT post holder who is head of P1 and P2 in a Primary school would enter a tick in the 3rd box as being responsible for health and safety for these year groups.
A220: Secondary Examples:
A221: For a PT Biology post the 1st box may be ticked.
A222: For a PT English post the 2nd box may be ticked.
A223: For a DHT post with health and safety responsibilities for S3 and S4 the 3rd box may be ticked.
A224: SECTION 3: RESPONSIBILITY FOR CURRICULUM DEVELOPMENT
A225: AND QUALITY ASSURANCE
A226: 3.1 To review the CPD needs, career development and performance of colleagues
A227: There is no need to enter any information for this item as a score will be calculated automatically based on the number of staff directly line managed by this post and entered in 2.1 and 2.2. Other responsibility for CPD (eg, a school's CPD Co-ordinator) should be recorded in 5.2.
A230: 3.2 To produce and implement the school improvement plan and responsibility for whole school policies
A231: This question is for DHT and PT posts only. For HT posts, this responsibility is scored automatically based on whole school data.
A232: You can make an entry in this question if you have sole responsibility to produce and lead the implementation of an improvement plan or a section of one, and also if you have sole responsibility for producing, leading and reviewing certain whole school policies, whether or not they are under review in the improvement plan (4th box).
A235: Tick the box/boxes to indicate the area on which the plan will have impact. More than one tick is possible, depending on the remit for the post.
A237: Give details of the specific responsibilities in relation to this post in the text box.
A238: Example:
A239: For a DHT post in any sector with sole responsibility for pastoral care and also for the production of the whole plan, tick the 2nd and 4th boxes. If the DHT post is also in charge of certain whole school policies, then this is already covered by the tick placed in the 4th box.
A242: Primary Example:
A243: For a DHT post with sole responsibility for the curricular areas of maths across all stages and also for the entire curriculum of P6 and P7, tick the 1st box and the 3rd box.
A245: Secondary Examples:
A246: For a science faculty PT post solely responsible for the improvement plan in biology, chemistry, physics and science, tick the 1st box.
A248: For a PT or DHT post with sole responsibility for an improvement plan for support for learning, tick the 3rd box.
A249: For a PT Guidance/Pupil Support post with sole responsibility for a section of the improvement plan dealing with an aspect of pupil support, tick the 2nd box. If, in addition, the PT has sole responsibility to develop, lead and review the whole school policy on health, then the 4th box should also be ticked.
A252: 3.3 To develop the curriculum and monitor learning and teaching
A253: This question may be answered for HT, DHT or PT posts, provided the post has direct responsibility for the curriculum of the classes shown and for monitoring learning and teaching in these classes.
A255: For PT Support for Learning the number of timetabled classes box must not be completed, instead an entry should be made in question 3.4 in the 5th box. However, entries may be made for subjects and qualifications, see example below.
A257: Primary
A258: Enter the number of timetabled classes for which the post has direct responsibility.
A259: There is no facility to enter subjects or qualifications, only the number of classes. Some classes may be composite. If this is so, decimals should be used to show the proportion at each stage. Some posts may be responsible for the entire curriculum at certain stages. However, other posts may be responsible for a curricular area for all or some stages. In such cases, decimals should be used to reflect the proportion of the curriculum involved. In all cases, including the use of decimals, the total across all promoted posts must be equal to the number of classes in the school.
A263: In Pre-5 a morning group is treated as 1 class, and an afternoon group also as 1 class. For a nursery with both a morning and afternoon group, enter 2 classes.
A265: Primary Examples:
A266: For a PT post responsible for the entire curriculum of P1-3 in a school with 2 x P1 classes, a P2 class, P2/3 composite (one third P2 and two thirds P3), and a P3 class, enter P1 - 2, P2 - 1.3, P3 - 1.7 (total 5 classes).
A268: A DHT responsible for language and expressive arts across all stages in a school where language is reckoned to account for 25% of the curriculum and expressive arts for 15%, is in charge of 40% of the curriculum. The total shown should amount to 0.4 of the total number of classes in the school, spread appropriately over all stages and being the equivalent of 0.4 per class.
A271: In a school with a class structure of 2 x P1, 1 x P2, 1 x P2/3 (half P2, half P3), 2 x P3, P4, P5, 1 x P6 and 1 x P7, the entries should be: P1 - 0.8, P2 - 0.6 (0.4 for the straight P2 plus 0.2 for half of the P2/3), P3 - 1.0 (0.4 for each straight P3 plus 0.2 for half of the P2/3), P4 - 0.8, P5 - 0.8, P6 - 0.4, P7 - 0.4. The total is 4.8. It can be checked by taking 0.4 of the school's total of 12 classes (=4.8).
A275: The following example illustrates an alternative approach to calculating curricular responsibility which avoids the use of decimals:
A276: In a primary school of 16 classes, the HT post is reckoned to have direct curricular responsibility for about half of the curriculum and the DHT post for about a quarter, with the remainder split equally between two PTs. If the HT post is being sized the figure 8 should be entered (against any stage). The entry for the DHT post would be 4, and that for each PT post would be 2.
A279: Secondary
A280: The curriculum is likely to be directly managed by PTs, and only rarely by DHTs or HTs. Entries should be made under 5 headings: Names of Subjects; Number of Subjects; Level of National Qualification; Number of National Qualifications (NQs) and Number of timetabled classes.
A283: Subjects
A284: A subject is a separate, recognisable course of study. It may be made up of individual units or topics, but these individual parts are not themselves considered subjects. If in doubt, reference can be made to the SQA catalogue (or similar publication) of national courses, national certificates and standard grades. Subjects not included in the SQA catalogue may also be counted. For example, ASDAN and Duke of Edinburgh should each be counted as one subject as long as they are timetabled within the school day.
A288: Certain subjects in S1 and possibly S2, for example science and technical, should be considered to be 1 subject, even if they comprise units from different parts of the curricular area. After that, the number of subjects may be counted separately.
A290: Some subjects, for example, RME and PE, have a general course (for all pupils) as well as specialist courses beyond S1/2. Even so, they should be considered to be offering only 1 subject for each year group.
A292: Give the names of the subjects and the number of subjects taught in each year group. Count S5 and S6 together if these pupils are timetabled together. For example, if 3 subjects are taught to mixed classes of S5 and S6, then record 3 subjects against either S5 or S6, but not both. Use decimals to show shared responsibility. For example, if responsibility for an S1/2 course in science is shared equally amongst a PT Biology, a PT Chemistry and a PT Physics, then show this as 0.33 under number of subjects, along with the number of classes.
A296: National Qualifications (NQs)
A297: Only national courses (collections of units), national certificates and standard grades count in this column. Individual units do not. Each level should be counted only once and placed against the year group with the biggest presentation.
A299: Give the name of each national course, certificate or standard grade and a total number at each stage, counting each level only once. Access 1, Access 2, Access 3, Standard Grade (not subdivided into F, G and C), ASDAN (not subdivided), Intermediate 1, Intermediate 2, Higher and Advanced Higher are all recognised levels.
A302: Timetabled classes
A303: Enter the number of separately identifiable class groups appearing on the school or departmental timetable in each year. In a school with 8 classes in S1 taking 3 subjects within the same faculty, the entry would be 8, not 24. This is because the same group of pupils takes all 3 subjects. After subject choices have been made, the pupil groupings are likely to be different for the 3 subjects and should be counted separately.
A307: Responsibility for some classes may be shared. For example, 3 PTs may share a science course in S1. The number to be entered in this column will depend on how the sharing is done. If 12 classes are organised on a rotational basis attending Biology for 3 months, Chemistry for 3 months and Physics for 3 months, then the entry would be 4 (with a corresponding entry of 1 in the subject column) as the subject is taught to 4 classes at any one time. However, if the classes are following an integrated science course with no rotation involved and each PT is responsible for one third of the course, then the entry would be 12 but the subject column would only show 0.33.
A312: Mixed classes of S5 and S6 are common. Simply count the total number of classes across S5 and S6 in the curricular areas concerned. They can be divided between S5 and S6 if so desired without affecting the score.
A314: Secondary Examples:
A315: A PT of RME post is responsible for: S1 - 7 classes; S2 - 8 classes; S3 - 8 core RE classes and 2 Standard Grade classes; S4 - 7 core RE classes and 2 Standard Grade classes; S5/6 - 1 Higher class and 1 Intermediate 2 class. This would be entered as:
A317: S1 - subjects 1 / national qualifications 0 / classes 7 (1/0/7)
A318: S2 - 1/0/8
A319: S3 - 1/0/10
A320: S4 - 1/1/9
A321: S5 - 1/2/2
A322: S6 - 0/0/0 (included in S5 figures)
A323: The subject names and NQ levels names should also be entered in the appropriate columns.
A325: A PT post covering both Biology and Chemistry has the following responsibilities:
A326: S1 - shared responsibility with another PT for an integrated science course for 12 classes;
A327: S2 - shared responsibility with another PT for an integrated science course for 12 classes;
A328: S3 - 3 biology and 2 chemistry classes, with both subjects offered at Standard Grade and Int1;
A329: S4 - 4 biology and 3 chemistry classes, with both subjects being offered at Standard Grade and Int1;
A330: S5/6 - 2 mixed S5/6 classes in H biology, 1 mixed S5/6 class in Int2 biology, and 1 mixed S5/6 class in Int1 biology, plus in
A331: chemistry 1 mixed S5/6 classes at Higher and 1 mixed S5/6 composite Int1/Int2 class;
A332: S6 - 1 class in either Advanced Higher Biology or Chemistry.
A333: This information would be recorded as:
A334: S1 - subjects 0.5 / national qualifications 0 / classes 12 (0.5/0/12)
A335: S2 - 0.5/0/12
A336: S3 - 2/0/5
A337: S4 - 2/4/7
A338: S5 - 2/4/6
A339: S6 - 1/1/1
... 101 more rows

Sheet Post-holder data
B1: 1. WHOLE-SCHOOL INFORMATION | R1: 2. RESPONSIBILITY FOR THE LEADERSHIP, GOOD MANAGEMENT & STRATEGIC DIRECTION OF COLLEAGUES | AZ1: 3. RESPONSIBILITY FOR CURRICULUM DEVELOPMENT & QUALITY ASSURANCE | CJ1: 4. RESPONSIBILITY FOR WHOLE-SCHOOL POLICY & IMPLEMENTATION | CW1: 5. RESPONSIBILITY FOR WORKING WITH PARTNERS
B2: Local Authority | C2: School Name and reference | E2: Current post | H2: More than one school? | I2: Total no. of schools | J2: Part Time | K2: Hours Per Week | L2: Member of SMT | M2: Formal depute role? | N2: Title of post | O2: Name of post holder | P2: Gender | R2: 2.1 No. of teaching staff managed | AF2: 2.2 No. of other staff managed | AP2: 2.3 Amount of budget managed | AV2: 2.4 Health & safety | AZ2: 3.2 Development plan | BD2: 3.3 To develop and monitor the curriculum | CB2: 3.4 Other formal curricular / management responsibilities | CI2: 3.5 Teaching time (hours) | CJ2: 4.1 Pupil behaviour management | CL2: 4.2 Guidance, pastoral care & pupil welfare | CT2: 4.3 Pupil assessment | CW2: 5.1 To work with parents | CY2: 5.2 To work with colleagues in the same establishment | DA2: 5.3 To work with other establishments and agencies
B3: Name | C3: Ref. (as in Whole School Data Sheet) | D3: Name | E3: HT | F3: DHT / AHT | G3: PT | P3: Male | Q3: Female | R3: Number of staff | Y3: FTEs | AF3: Number of staff | AK3: FTEs | AP3: None | AQ3: Up to £1000 | AR3: £1001 to £5000 | AS3: £5001 to £10000 | AT3: £10001 to £25000 | AU3: Over £25000 | AV3: High risk subject(s) | AW3: Other subgect(s) | AX3: Year groups and specialist sections | AY3: Whole Scool | AZ3: With impact on: | BD3: Developing subjects | BJ3: National Qualifications | BN3: Monitoring (no. of classes) | CB3: Whole-school timetabling | CC3: Whole-school responsibility for ICT | CD3: Early years / nursery classes | CE3: Learning and / or behvioural support | CF3: A special needs unit / classes | CG3: Other specialist sections such as English as a second language | CH3: Primary section of combined school | CJ3: Leading with impact on: | CL3: With impact on: | CO3: Guidance case load | CT3: With impact on: | CW3: With impact on: | CY3: With impact on: | DA3: With impact on:
R4: None | S4: 1 | T4: 2 to 5 | U4: 6 to 10 | V4: 11 to 25 | W4: 26 to 50 | X4: 50+ | Y4: None | Z4: 1 | AA4: 2 to 5 | AB4: 6 to 10 | AC4: 11 to 25 | AD4: 26 to 50 | AE4: 50+ | AF4: None | AG4: 1 | AH4: 2 to 10 | AI4: 11 to 25 | AJ4: 25+ | AK4: None | AL4: 1 | AM4: 2 to 10 | AN4: 11 to 25 | AO4: 25+ | AZ4: Departments / subjects | BA4: Guidance & pastoral care | BB4: Year groups and specialist sections | BC4: Whole School | BD4: S1 | BE4: S2 | BF4: S3 | BG4: S4 | BH4: S5 | BI4: S6 | BJ4: S3 | BK4: S4 | BL4: S5 | BM4: S6 | BN4: Nursery | BO4: P1 | BP4: P2 | BQ4: P3 | BR4: P4 | BS4: P5 | BT4: P6 | BU4: P7 | BV4: S1 | BW4: S2 | BX4: S3 | BY4: S4 | BZ4: S5 | CA4: S6 | CJ4: Year groups and specialist sections | CK4: Whole School | CL4: Guidance & pastoral care | CM4: Year groups and specialist sections | CN4: Whole School | CO4: None | CP4: 1 to 50 | CQ4: 51 to 100 | CR4: 101 to 200 | CS4: Over 200 | CT4: Departments / subgects | CU4: Year groups and specialist sections | CV4: Whole School | CW4: Year groups and specialist sections | CX4: Whole School | CY4: Year groups and specialist sections | CZ4: Whole School | DA4: Year groups and specialist sections | DB4: Whole School | DC4: Other establishments / agencies | DD4: No depute | DE4: Number of deputes
A5: 1 | B5: =IF(B9=0,B10,IF(B9=1,B11,B12)) -> 0 | C5: School | D5: =IF(D9=0,D10,IF(D9=1,D11,D12)) -> 0 | E5: =IF(E9=0,E10,IF(E9=1,E11,E12)) -> y | F5: =IF(F9=0,F10,IF(F9=1,F11,F12)) ->  | G5: =IF(G9=0,G10,IF(G9=1,G11,G12)) ->  | H5: =IF(H9=0,H10,IF(H9=1,H11,H12)) ->  | I5: =+'Section 1'!H39 -> 0 | J5: =IF(J9=0,J10,IF(J9=1,J11,J12)) ->  | K5: =+'Section 1'!H43 -> 0 | L5: =IF(L9=0,L10,IF(L9=1,L11,L12)) ->  | M5: =IF(M9=0,M10,IF(M9=1,M11,M12)) ->  | N5: =+'Section 1'!F57 -> 0 | O5: =+'Section 1'!F59 -> 0 | P5: =IF(P9=0,P10,IF(P9=1,P11,P12)) ->  | Q5: y | R5: y | Y5: y | AF5: y | AK5: y | AP5: y | AV5: =IF(AV9=0,AV10,IF(AV9=1,AV11,AV12)) ->  | BD5: 0 | BE5: 0 | BF5: 0 | BG5: 0 | BH5: 0 | BI5: 0 | BJ5: 0 | BK5: 0 | BL5: 0 | BM5: 0 | BN5: 0 | BO5: 0 | BP5: 0 | BQ5: 0 | BR5: 0 | BS5: 0 | BT5: 0 | BU5: 0 | BV5: 0 | BW5: 0 | BX5: 0 | BY5: 0 | BZ5: 0 | CA5: 0 | CB5: =IF(CB9=0,CB10,IF(CB9=1,CB11,CB12)) ->  | CI5: 0 | CO5: y | DD5: =IF('Key Ranges - Post holder '!P27=TRUE,"y","") ->  | DE5: =IF('Post-holder data'!DD5="y",'Section 1'!K54,0) -> 0
A6: Radio Nos. | B6: 1 | C6: 1 | D6: 1 | E6: 1 | F6: 2 | G6: 3 | H6: 1 | I6: 1 | J6: 1 | K6: 1 | L6: 1 | M6: 1 | O6: 1 | P6: 1 | Q6: 2 | R6: 1 | S6: 2 | T6: 3 | U6: 4 | V6: 5 | W6: 6 | X6: 7 | Y6: 1 | Z6: 2 | AA6: 3 | AB6: 4 | AC6: 5 | AD6: 6 | AE6: 7 | AF6: 1 | AG6: 2 | AH6: 3 | AI6: 4 | AJ6: 5 | AK6: 1 | AL6: 2 | AM6: 3 | AN6: 4 | AO6: 5 | AP6: 1 | AQ6: 2 | AR6: 3 | AS6: 4 | AT6: 5 | AU6: 6 | AV6: 1 | AW6: 2 | AX6: 3 | AY6: 4 | AZ6: 1 | BA6: 2 | BB6: 3 | BC6: 4 | BD6: 1 | BE6: 2 | BF6: 3 | BG6: 4 | BH6: 5 | BI6: 6 | BJ6: 1 | BK6: 2 | BL6: 3 | BM6: 4 | BN6: 1 | BO6: 2 | BP6: 3 | BQ6: 4 | BR6: 5 | BS6: 6 | BT6: 7 | BU6: 8 | BV6: 9 | BW6: 10 | BX6: 11 | BY6: 12 | BZ6: 13 | CA6: 14 | CB6: 1 | CC6: 2 | CD6: 3 | CE6: 4 | CF6: 5 | CG6: 6 | CH6: 7 | CI6: 1 | CJ6: 1 | CK6: 2 | CL6: 1 | CM6: 2 | CN6: 3 | CO6: 1 | CP6: 2 | CQ6: 3 | CR6: 4 | CS6: 5 | CT6: 1 | CU6: 2 | CV6: 3 | CW6: 1 | CX6: 2 | CY6: 1 | CZ6: 2 | DA6: 1 | DB6: 2 | DC6: 3
A7: Named Range | B7: one_1 | D7: one_3 | E7: one_4 | F7: one_4 | G7: one_4 | H7: one_4i | I7: one_4ii | J7: one_4iii | K7: one_4iv | L7: one_4v | M7: one_4vi | O7: one_6 | P7: one_7 | Q7: one_7 | R7: two_1i | S7: two_1i | T7: two_1i | U7: two_1i | V7: two_1i | W7: two_1i | X7: two_1i | Y7: two_1ii | Z7: two_1ii | AA7: two_1ii | AB7: two_1ii | AC7: two_1ii | AD7: two_1ii | AE7: two_1ii | AF7: two_2i | AG7: two_2i | AH7: two_2i | AI7: two_2i | AJ7: two_2i | AK7: two_2ii | AL7: two_2ii | AM7: two_2ii | AN7: two_2ii | AO7: two_2ii | AP7: two_3 | AQ7: two_3 | AR7: two_3 | AS7: two_3 | AT7: two_3 | AU7: two_3 | AV7: two_4 | AW7: two_4 | AX7: two_4 | AY7: two_4 | AZ7: three_2 | BA7: three_2 | BB7: three_2 | BC7: three_2 | BD7: three_3i | BE7: three_3i | BF7: three_3i | BG7: three_3i | BH7: three_3i | BI7: three_3i | BJ7: three_3ii | BK7: three_3ii | BL7: three_3ii | BM7: three_3ii | BN7: three_3iii | BO7: three_3iii | BP7: three_3iii | BQ7: three_3iii | BR7: three_3iii | BS7: three_3iii | BT7: three_3iii | BU7: three_3iii | BV7: three_3iii | BW7: three_3iii | BX7: three_3iii | BY7: three_3iii | BZ7: three_3iii | CA7: three_3iii | CB7: three_4 | CC7: three_4 | CD7: three_4 | CE7: three_4 | CF7: three_4 | CG7: three_4 | CH7: three_4 | CI7: three_5 | CJ7: four_1 | CK7: four_1 | CL7: four_2i | CM7: four_2i | CN7: four_2i | CO7: four_2ii | CP7: four_2ii | CQ7: four_2ii | CR7: four_2ii | CS7: four_2ii | CT7: four_3 | CU7: four_3 | CV7: four_3 | CW7: five_1 | CX7: five_1 | CY7: five_2 | CZ7: five_2 | DA7: five_3 | DB7: five_3 | DC7: five_3
A8: Link Cell Name | E8: linkone_4 | F8: linkone_4 | G8: linkone_4 | P8: linkone_7 | Q8: linkone_7 | R8: linktwo_1i | S8: linktwo_1i | T8: linktwo_1i | U8: linktwo_1i | V8: linktwo_1i | W8: linktwo_1i | X8: linktwo_1i | Y8: linktwo_1ii | Z8: linktwo_1ii | AA8: linktwo_1ii | AB8: linktwo_1ii | AC8: linktwo_1ii | AD8: linktwo_1ii | AE8: linktwo_1ii | AF8: linktwo_2i | AG8: linktwo_2i | AH8: linktwo_2i | AI8: linktwo_2i | AJ8: linktwo_2i | AK8: linktwo_2ii | AL8: linktwo_2ii | AM8: linktwo_2ii | AN8: linktwo_2ii | AO8: linktwo_2ii | AP8: linktwo_3 | AQ8: linktwo_3 | AR8: linktwo_3 | AS8: linktwo_3 | AT8: linktwo_3 | AU8: linktwo_3 | CO8: linkfour_2ii | CP8: linkfour_2ii | CQ8: linkfour_2ii | CR8: linkfour_2ii | CS8: linkfour_2ii
A9: What input? (Radio=0, Check box = 1, Direct input =2?) | B9: 2 | D9: 2 | E9: 0 | F9: 0 | G9: 0 | H9: 1 | I9: 2 | J9: 1 | K9: 2 | L9: 1 | M9: 1 | O9: 2 | P9: 0 | Q9: 0 | R9: 0 | S9: 0 | T9: 0 | U9: 0 | V9: 0 | W9: 0 | X9: 0 | Y9: 0 | Z9: 0 | AA9: 0 | AB9: 0 | AC9: 0 | AD9: 0 | AE9: 0 | AF9: 0 | AG9: 0 | AH9: 0 | AI9: 0 | AJ9: 0 | AK9: 0 | AL9: 0 | AM9: 0 | AN9: 0 | AO9: 0 | AP9: 0 | AQ9: 0 | AR9: 0 | AS9: 0 | AT9: 0 | AU9: 0 | AV9: 1 | AW9: 1 | AX9: 1 | AY9: 1 | AZ9: 1 | BA9: 1 | BB9: 1 | BC9: 1 | BD9: 2 | BE9: 2 | BF9: 2 | BG9: 2 | BH9: 2 | BI9: 2 | BJ9: 2 | BK9: 2 | BL9: 2 | BM9: 2 | BN9: 2 | BO9: 2 | BP9: 2 | BQ9: 2 | BR9: 2 | BS9: 2 | BT9: 2 | BU9: 2 | BV9: 2 | BW9: 2 | BX9: 2 | BY9: 2 | BZ9: 2 | CA9: 2 | CB9: 1 | CC9: 1 | CD9: 1 | CE9: 1 | CF9: 1 | CG9: 1 | CH9: 1 | CI9: 2 | CJ9: 1 | CK9: 1 | CL9: 1 | CM9: 1 | CN9: 1 | CO9: 0 | CP9: 0 | CQ9: 0 | CR9: 0 | CS9: 0 | CT9: 1 | CU9: 1 | CV9: 1 | CW9: 1 | CX9: 1 | CY9: 1 | CZ9: 1 | DA9: 1 | DB9: 1 | DC9: 1
A10: Formula for Radio | B10: =IF(ISERROR(IF(OR(B8="",INDIRECT(B8)=B6),VLOOKUP(B6,INDIRECT(B7),2,FALSE),"")),"",IF(OR(B8="",INDIRECT(B8)=B6),VLOOKUP(B6,INDIRECT(B7),2,FALSE),"")) ->  | C10: =IF(ISERROR(IF(OR(C8="",INDIRECT(C8)=C6),VLOOKUP(C6,INDIRECT(C7),2,FALSE),"")),"",IF(OR(C8="",INDIRECT(C8)=C6),VLOOKUP(C6,INDIRECT(C7),2,FALSE),"")) ->  | E10: y | Q10: y | R10: y | Y10: y | AF10: y | AK10: y | AP10: y | BO10: =IF(ISERROR(IF(OR(BO8="",INDIRECT(BO8)=BO6),VLOOKUP(BO6,INDIRECT(BO7),2,FALSE),"")),"",IF(OR(BO8="",INDIRECT(BO8)=BO6),VLOOKUP(BO6,INDIRECT(BO7),2,FALSE),"")) ->  | CO10: y
A11: Formula for Check box | B11: =IF(VLOOKUP(B6,INDIRECT(B7),2,FALSE)=1,"y","") ->  | D11: =IF(VLOOKUP(D6,INDIRECT(D7),2,FALSE)=1,"y","") ->  | E11: =IF(VLOOKUP(E6,INDIRECT(E7),2,FALSE)=1,"y","") ->  | BQ11: =IF(VLOOKUP(BQ6,INDIRECT(BQ7),2,FALSE)=1,"y","") -> 
A12: Formula for Direct input | B12: =VLOOKUP(B6,INDIRECT(B7),2,FALSE) -> 0 | D12: =VLOOKUP(D6,INDIRECT(D7),2,FALSE) -> 0 | E12: =VLOOKUP(E6,INDIRECT(E7),2,FALSE) -> y | F12: y | G12: y | H12: 0 | I12: 0 | J12: 0 | K12: 0 | L12: 0 | M12: 0 | O12: 0 | P12: y | Q12: y | R12: y | S12: y | T12: y | U12: y | V12: y | W12: y | X12: y | Y12: y | Z12: y | AA12: y | AB12: y | AC12: y | AD12: y | AE12: y | AF12: y | AG12: y | AH12: y | AI12: y | AJ12: y | AK12: y | AL12: y | AM12: y | AN12: y | AO12: y | AP12: y | AQ12: y | AR12: y | AS12: y | AT12: y | AU12: y | AV12: 0 | AW12: 0 | AX12: 0 | AY12: 0 | AZ12: 0 | BA12: 0 | BB12: 0 | BC12: 0 | BD12: 0 | BE12: 0 | BF12: 0 | BG12: 0 | BH12: 0 | BI12: 0 | BJ12: 0 | BK12: 0 | BL12: 0 | BM12: 0 | BN12: 0 | BO12: 0 | BP12: 0 | BQ12: =VLOOKUP(BQ6,INDIRECT(BQ7),2,FALSE) -> 0 | BR12: 0 | BS12: 0 | BT12: 0 | BU12: 0 | BV12: 0 | BW12: 0 | BX12: 0 | BY12: 0 | BZ12: 0 | CA12: 0 | CB12: 0 | CC12: 0 | CD12: 0 | CE12: 0 | CF12: 0 | CG12: 0 | CH12: 0 | CI12: 0 | CJ12: 0 | CK12: 0 | CL12: 0 | CM12: 0 | CN12: 0 | CO12: y | CP12: y | CQ12: y | CR12: y | CS12: y | CT12: 0 | CU12: 0 | CV12: 0 | CW12: 0 | CX12: 0 | CY12: 0 | CZ12: 0 | DA12: 0 | DB12: 0 | DC12: 0

Sheet Key Ranges - Post holder
A1: Key | O1: N/B: False = 0 and True = 1
A3: 1.1 | C3: Link cells | F3: 2.1i | J3: 3.2 | N3: 4.1 | R3: 5.1
A4: 1 | B4: ='Section 1'!G15 -> 0 | F4: 1 | G4: y | H4: 1 | J4: 1 | K4: =IF(L4=FALSE,0,1) -> 0 | L4: FALSE | N4: 1 | O4: =IF(P4=FALSE,0,1) -> 0 | P4: FALSE | R4: 1 | S4: =IF(T4=FALSE,0,1) -> 0 | T4: FALSE
F5: 2 | G5: y | J5: 2 | K5: =IF(L5=FALSE,0,1) -> 0 | L5: FALSE | N5: 2 | O5: =IF(P5=FALSE,0,1) -> 0 | P5: FALSE | R5: 2 | S5: =IF(T5=FALSE,0,1) -> 0 | T5: FALSE
A6: 1.3 | F6: 3 | G6: y | J6: 3 | K6: =IF(L6=FALSE,0,1) -> 0 | L6: FALSE
A7: 1 | B7: ='Section 1'!G20 -> 0 | F7: 4 | G7: y | J7: 4 | K7: =IF(L7=FALSE,0,1) -> 0 | L7: FALSE | N7: 4.2i | R7: 5.2
F8: 5 | G8: y | N8: 1 | O8: =IF(P8=FALSE,0,1) -> 0 | P8: FALSE | R8: 1 | S8: =IF(T8=FALSE,0,1) -> 0 | T8: FALSE
A9: 1.4 | F9: 6 | G9: y | N9: 2 | O9: =IF(P9=FALSE,0,1) -> 0 | P9: FALSE | R9: 2 | S9: =IF(T9=FALSE,0,1) -> 0 | T9: FALSE
A10: 1 | B10: y | C10: 1 | F10: 7 | G10: y | J10: 3.3i | N10: 3 | O10: =IF(P10=FALSE,0,1) -> 0 | P10: FALSE
A11: 2 | B11: y | J11: 1 | K11: ='Section 1'!F374 -> 0
A12: 3 | B12: y | F12: 2.1ii | J12: 2 | K12: ='Section 1'!F377 -> 0 | N12: 4.2ii | R12: 5.3
F13: 1 | G13: y | H13: 1 | J13: 3 | K13: ='Section 1'!F380 -> 0 | N13: 1 | O13: y | P13: 1 | R13: 1 | S13: =IF(T13=FALSE,0,1) -> 0 | T13: FALSE
A14: 1.4i | F14: 2 | G14: y | J14: 4 | K14: ='Section 1'!F383 -> 0 | N14: 2 | O14: y | R14: 2 | S14: =IF(T14=FALSE,0,1) -> 0 | T14: FALSE
A15: 1 | B15: =IF(C15=FALSE,0,1) -> 0 | C15: FALSE | F15: 3 | G15: y | J15: 5 | K15: ='Section 1'!F386 -> 0 | N15: 3 | O15: y | R15: 3 | S15: =IF(T15=FALSE,0,1) -> 0 | T15: FALSE
F16: 4 | G16: y | J16: 6 | K16: ='Section 1'!F389 -> 0 | N16: 4 | O16: y
A17: 1.4ii | F17: 5 | G17: y | N17: 5 | O17: y
A18: 1 | B18: =+'Section 1'!H39 -> 0 | F18: 6 | G18: y | J18: 3.3ii
F19: 7 | G19: y | J19: 1 | K19: ='Section 1'!I380 -> 0 | N19: 4.3
A20: 1.4iii | J20: 2 | K20: ='Section 1'!I383 -> 0 | N20: 1 | O20: =IF(P20=FALSE,0,1) -> 0 | P20: FALSE
A21: 1 | B21: =IF(C21=FALSE,0,1) -> 0 | C21: FALSE | F21: 2.2i | J21: 3 | K21: ='Section 1'!I386 -> 0 | N21: 2 | O21: =IF(P21=FALSE,0,1) -> 0 | P21: FALSE
F22: 1 | G22: y | H22: 1 | J22: 4 | K22: ='Section 1'!I389 -> 0 | N22: 3 | O22: =IF(P22=FALSE,0,1) -> 0 | P22: FALSE
A23: 1.4iv | F23: 2 | G23: y
A24: 1 | B24: =+'Section 1'!H43 -> 0 | F24: 3 | G24: y | J24: 3.3iii
F25: 4 | G25: y | J25: 1 | K25: ='Section 1'!F354 -> 0 | N25: 1.4new
A26: 1.4v | F26: 5 | G26: y | J26: 2 | K26: ='Section 1'!F355 -> 0 | N26: 1 | O26: =IF(P26=FALSE,0,1) -> 0 | P26: FALSE
A27: 1 | B27: =IF(C27=FALSE,0,1) -> 0 | C27: FALSE | J27: 3 | K27: ='Section 1'!F356 -> 0 | P27: =+P26 -> FALSE
F28: 2.2ii | J28: 4 | K28: ='Section 1'!F357 -> 0
A29: 1.4vi | F29: 1 | G29: y | H29: 1 | J29: 5 | K29: ='Section 1'!F358 -> 0
A30: 1 | B30: =IF(C30=FALSE,0,1) -> 0 | C30: FALSE | F30: 2 | G30: y | J30: 6 | K30: ='Section 1'!F359 -> 0
F31: 3 | G31: y | J31: 7 | K31: ='Section 1'!F360 -> 0
A32: 1.5 | F32: 4 | G32: y | J32: 8 | K32: ='Section 1'!F361 -> 0 | P32: =IF(P27="false",1,2) -> 2
A33: 1 | B33: ='Section 1'!G57 -> 0 | F33: 5 | G33: y | J33: 9 | K33: ='Section 1'!J374 -> 0
J34: 10 | K34: ='Section 1'!J377 -> 0
A35: 1.6 | F35: 2.3 | J35: 11 | K35: ='Section 1'!J380 -> 0
A36: 1 | B36: ='Section 1'!G59 -> 0 | F36: 1 | G36: y | H36: 1 | J36: 12 | K36: ='Section 1'!J383 -> 0
F37: 2 | G37: y | J37: 13 | K37: ='Section 1'!J386 -> 0
F38: 3 | G38: y | J38: 14 | K38: ='Section 1'!J389 -> 0
A39: 1.7 | C39: 2 | F39: 4 | G39: y
A40: 1 | B40: y | F40: 5 | G40: y | J40: 3.4
A41: 2 | B41: y | F41: 6 | G41: y | J41: 1 | K41: =IF(L41=FALSE,0,1) -> 0 | L41: FALSE
J42: 2 | K42: 0 | L42: FALSE
F43: 2.4 | J43: 3 | K43: 0 | L43: FALSE
F44: 1 | G44: =IF(H44=FALSE,0,1) -> 0 | H44: FALSE | J44: 4 | K44: 0 | L44: FALSE
F45: 2 | G45: =IF(H45=FALSE,0,1) -> 0 | H45: FALSE | J45: 5 | K45: 0 | L45: FALSE
F46: 3 | G46: =IF(H46=FALSE,0,1) -> 0 | H46: FALSE | J46: 6 | K46: 0 | L46: FALSE
F47: 4 | G47: =IF(H47=FALSE,0,1) -> 0 | H47: FALSE | J47: 7 | K47: 0 | L47: FALSE
J49: 3.5
J50: 1 | K50: ='Section 1'!I429 -> 0
A51: =CELL("filename") -> https://theeis-my.sharepoint.com/personal/landerson_eis_org_uk/Documents/Microsoft Teams Chat Files/[JS TOOLKIT 2026.xlsm]Section 1

Sheet Whole-school data
A1: Local Authority | B1: SEED REFERENCE | C1: School Reference | D1: School Name | E1: 1.9 Type of establishment | L1: 1.10 School Roll | U1: 1.11 Numbers of staff | X1: 1.12 FME % | AC1: 1.13 Budget £ | AJ1: 1.14 No. of children with transport to school | AP1: Multi-site?
E2: Primary | F2: Secondary | G2: Special | H2: Junior High School | I2: Other | J2: Includes nursery unit | K2: Includes SEN unit | L2: Up to 50 | M2: 51 to 100 | N2: 101 to 250 | O2: 251 to 500 | P2: 501 to 750 | Q2: 751 to 1000 | R2: 1001 to 1250 | S2: 1251 to 1500 | T2: Over 1500 | U2: Promoted posts | V2: Other teaching staff | W2: Other staff | X2: 0% to 10% | Y2: 11% to 25% | Z2: 26% to 50% | AA2: 51% to 75% | AB2: 76% to 100% | AC2: Total Budget £ | AD2: None | AE2: Up to 10000 | AF2: 10001 to 50000 | AG2: 50001 to 100000 | AH2: 100001 to 250000 | AI2: Over 250000 | AJ2: 0 to 50 | AK2: 51 to 100 | AL2: 101 to 200 | AM2: 201 to 300 | AN2: 301 to 400 | AO2: Over 400
A3: Radio Nos. | D3: 1 | E3: 1 | F3: 2 | G3: 3 | H3: 4 | I3: 5 | J3: 1 | K3: 2 | L3: 1 | M3: 2 | N3: 3 | O3: 4 | P3: 5 | Q3: 6 | R3: 7 | S3: 8 | T3: 9 | U3: 1 | V3: 2 | W3: 3 | X3: 1 | Y3: 2 | Z3: 3 | AA3: 4 | AB3: 5 | AD3: 1 | AE3: 2 | AF3: 3 | AG3: 4 | AH3: 5 | AI3: 6 | AJ3: 1 | AK3: 2 | AL3: 3 | AM3: 4 | AN3: 5 | AO3: 6 | AP3: 1
A4: Named Range | D4: one_3 | E4: one_9 | F4: one_9 | G4: one_9 | H4: one_9 | I4: one_9 | J4: one_9i | K4: one_9i | L4: one_10 | M4: one_10 | N4: one_10 | O4: one_10 | P4: one_10 | Q4: one_10 | R4: one_10 | S4: one_10 | T4: one_10 | U4: one_11 | V4: one_11 | W4: one_11 | X4: one_12 | Y4: one_12 | Z4: one_12 | AA4: one_12 | AB4: one_12 | AD4: one_13ii | AE4: one_13ii | AF4: one_13ii | AG4: one_13ii | AH4: one_13ii | AI4: one_13ii | AJ4: one_14 | AK4: one_14 | AL4: one_14 | AM4: one_14 | AN4: one_14 | AO4: one_14 | AP4: one_14i
A5: Link Cell Name | E5: Linkone_9 | F5: Linkone_9 | G5: Linkone_9 | H5: Linkone_9 | I5: Linkone_9 | L5: Linkone_10 | M5: Linkone_10 | N5: Linkone_10 | O5: Linkone_10 | P5: Linkone_10 | Q5: Linkone_10 | R5: Linkone_10 | S5: Linkone_10 | T5: Linkone_10 | X5: Linkone_12 | Y5: Linkone_12 | Z5: Linkone_12 | AA5: Linkone_12 | AB5: Linkone_12 | AD5: Linkone_13ii | AE5: Linkone_13ii | AF5: Linkone_13ii | AG5: Linkone_13ii | AH5: Linkone_13ii | AI5: Linkone_13ii | AJ5: Linkone_14 | AK5: Linkone_14 | AL5: Linkone_14 | AM5: Linkone_14 | AN5: Linkone_14 | AO5: Linkone_14
A6: What input? (Radio=0, Check box = 1, Direct input =2?) | D6: 2 | E6: 0 | F6: 0 | G6: 0 | H6: 0 | I6: 0 | J6: 1 | K6: 1 | L6: 0 | M6: 0 | N6: 0 | O6: 0 | P6: 0 | Q6: 0 | R6: 0 | S6: 0 | T6: 0 | U6: 2 | V6: 2 | W6: 2 | X6: 0 | Y6: 0 | Z6: 0 | AA6: 0 | AB6: 0 | AD6: 0 | AE6: 0 | AF6: 0 | AG6: 0 | AH6: 0 | AI6: 0 | AJ6: 0 | AK6: 0 | AL6: 0 | AM6: 0 | AN6: 0 | AO6: 0 | AP6: 1
A7: Formula for Radio | D7: =IF(ISERROR(IF(OR(D5="",INDIRECT(D5)=D3),VLOOKUP(D3,INDIRECT(D4),2,FALSE),"")),"",IF(OR(D5="",INDIRECT(D5)=D3),VLOOKUP(D3,INDIRECT(D4),2,FALSE),"")) ->  | E7: y | J7: =IF(ISERROR(IF(OR(J5="",INDIRECT(J5)=J3),VLOOKUP(J3,INDIRECT(J4),2,FALSE),"")),"",IF(OR(J5="",INDIRECT(J5)=J3),VLOOKUP(J3,INDIRECT(J4),2,FALSE),"")) ->  | L7: y | X7: y | AD7: y | AJ7: y
A8: Formula for Check box | D8: =IF(VLOOKUP(D3,INDIRECT(D4),2,FALSE)=1,"y","") ->  | K8: =IF(VLOOKUP(K3,INDIRECT(K4),2,FALSE)=1,"y","") ->  | U8: =IF(VLOOKUP(U3,INDIRECT(U4),2,FALSE)=1,"y","") ->  | V8: =IF(VLOOKUP(V3,INDIRECT(V4),2,FALSE)=1,"y","") ->  | W8: =IF(VLOOKUP(W3,INDIRECT(W4),2,FALSE)=1,"y","") ->  | AP8: =IF(VLOOKUP(AP3,INDIRECT(AP4),2,FALSE)=1,"y","") -> 
A9: Formula for Direct input | D9: =VLOOKUP(D3,INDIRECT(D4),2,FALSE) -> 0 | E9: y | F9: y | G9: y | H9: y | I9: y | J9: =VLOOKUP(J3,INDIRECT(J4),2,FALSE) -> 0 | K9: 0 | L9: y | M9: y | N9: y | O9: y | P9: y | Q9: y | R9: y | S9: y | T9: y | U9: 0 | V9: 0 | W9: 0 | X9: y | Y9: y | Z9: y | AA9: y | AB9: y | AD9: y | AE9: y | AF9: y | AG9: y | AH9: y | AI9: y | AJ9: y | AK9: y | AL9: y | AM9: y | AN9: y | AO9: y | AP9: 0
C10: School | D10: =IF(D6=0,D7,IF(D6=1,D8,D9)) -> 0 | E10: y | J10: =IF(J6=0,J7,IF(J6=1,J8,J9)) ->  | L10: y | U10: 0 | V10: 0 | W10: 0 | X10: y | AC10: =+'Section 1'!G146 -> 0 | AD10: y | AJ10: y

Sheet Key ranges - Whole school
A2: 1.9 | E2: 1.13ii
A3: 1 | B3: y | C3: 1 | E3: 1 | F3: y | G3: 1
A4: 2 | B4: y | E4: 2 | F4: y
A5: 3 | B5: y | E5: 3 | F5: y
A6: 4 | B6: y | E6: 4 | F6: y
A7: 5 | B7: y | E7: 5 | F7: y
E8: 6 | F8: y
A9: 1.9i
A10: 1 | B10: =IF(C10=FALSE,0,1) -> 0 | C10: FALSE
A11: 2 | B11: =IF(C11=FALSE,0,1) -> 0 | C11: FALSE | E11: 1.14
E12: 1 | F12: y | G12: 1
A13: 1.1 | E13: 2 | F13: y
A14: 1 | B14: y | C14: 1 | E14: 3 | F14: y
A15: 2 | B15: y | E15: 4 | F15: y
A16: 3 | B16: y | E16: 5 | F16: y
A17: 4 | B17: y | E17: 6 | F17: y
A18: 5 | B18: y
A19: 6 | B19: y | E19: 1.14i
A20: 7 | B20: y | E20: 1 | F20: =IF(G20=FALSE,0,1) -> 0 | G20: FALSE
A21: 8 | B21: y
A22: 9 | B22: y
A24: 1.11
A25: 1 | B25: =+'Section 1'!F121 -> 0
A26: 2 | B26: =+'Section 1'!F123 -> 0
A27: 3 | B27: =+'Section 1'!F125 -> 0
A29: 1.12
A30: 1 | B30: y | C30: 1
A31: 2 | B31: y
A32: 3 | B32: y
A33: 4 | B33: y
A34: 5 | B34: y
A36: 1.13i
A37: 1 | B37: ='Section 1'!#REF! -> 

Sheet Allocation to scales
C1: Job Size | F1: Headteachers / depute Headteachers
A3: Headteacher and deputes
C7: Lower | D7: Upper | E7: Point | F7: Salary
C10: 0 | D10: 128 | E10: 1 | F10: 35500
C11: 129 | D11: 142 | E11: 2 | F11: 36600
C12: 143 | D12: 157 | E12: 3 | F12: 37800
C13: 158 | D13: 174 | E13: 4 | F13: 39099
C14: 175 | D14: 191 | E14: 5 | F14: 40401
C15: 192 | D15: 205 | E15: 6 | F15: 41499
C16: 206 | D16: 220 | E16: 7 | F16: 42699
C17: 221 | D17: 235 | E17: 8 | F17: 43899
C18: 236 | D18: 250 | E18: 9 | F18: 45099
C19: 251 | D19: 266 | E19: 10 | F19: 46299
C20: 267 | D20: 291 | E20: 11 | F20: 48300
C21: 292 | D21: 317 | E21: 12 | F21: 50301
C22: 318 | D22: 342 | E22: 13 | F22: 52299
C23: 343 | D23: 368 | E23: 14 | F23: 54300
C24: 369 | D24: 406 | E24: 15 | F24: 57300
C25: 407 | D25: 444 | E25: 16 | F25: 60300
C26: 445 | D26: 483 | E26: 17 | F26: 63300
C27: 484 | D27: 521 | E27: 18 | F27: 66300
C28: 522 | E28: 19 | F28: 69300
A31: Principal teachers
C36: Lower | D36: Upper | E36: Point | F36: Salary
C38: 0 | D38: 82 | E38: 1 | F38: 31299
C39: 83 | D39: 96 | E39: 2 | F39: 32601
C40: 97 | D40: 110 | E40: 3 | F40: 33900
C41: 111 | D41: 126 | E41: 4 | F41: 35199
C42: 127 | D42: 142 | E42: 5 | F42: 36501
C43: 143 | D43: 159 | E43: 6 | F43: 37800
C44: 160 | D44: 177 | E44: 7 | F44: 39099
C45: 178 | E45: 8 | F45: 40401
